Workbook

Sheet VERA Pension Factors (hidden)
A1: 1995
A2: TABLE ERF1 | B2: Updated 29/01/2019 | P2: TABLE ERF1 | R2: Updated 13/07/2023
A3: NHS SUPERANNUATION SCHEME SCOTLAND: ACTUARIAL FACTORS | P3: NHS SUPERANNUATION SCHEME SCOTLAND: ACTUARIAL FACTORS
A4: BENEFITS PAYABLE TO THE MEMBER ON VOLUNTARY EARLY RETIREMENT (WITH ACTUARIAL REDUCTION) | P4: BENEFITS PAYABLE TO THE MEMBER ON VOLUNTARY EARLY RETIREMENT (WITH ACTUARIAL REDUCTION)
A5: MEMBERS OF 1995 SECTION (RELATIVE TO PENSION AGE OF 60) | P5: MEMBERS OF 1995 SECTION (RELATIVE TO PENSION AGE OF 60)
A7: Age: complete months | B7: 0 | C7: 1 | D7: 2 | E7: 3 | F7: 4 | G7: 5 | H7: 6 | I7: 7 | J7: 8 | K7: 9 | L7: 10 | M7: 11 | P7: Age: complete months | Q7: 0 | R7: 1 | S7: 2 | T7: 3 | U7: 4 | V7: 5 | W7: 6 | X7: 7 | Y7: 8 | Z7: 9 | AA7: 10 | AB7: 11
A8: PENSION FACTORS | P8: PENSION FACTORS
A9: 50 | B9: 0.654 | C9: 0.656 | D9: 0.658 | E9: 0.66 | F9: 0.662 | G9: 0.664 | H9: 0.666 | I9: 0.668 | J9: 0.67 | K9: 0.672 | L9: 0.674 | M9: 0.677 | P9: 50 | Q9: 0.676 | R9: 0.678 | S9: 0.68 | T9: 0.682 | U9: 0.684 | V9: 0.686 | W9: 0.688 | X9: 0.689 | Y9: 0.691 | Z9: 0.693 | AA9: 0.695 | AB9: 0.697
A10: 51 | B10: 0.679 | C10: 0.681 | D10: 0.683 | E10: 0.685 | F10: 0.687 | G10: 0.689 | H10: 0.692 | I10: 0.694 | J10: 0.696 | K10: 0.698 | L10: 0.7 | M10: 0.702 | P10: 51 | Q10: 0.699 | R10: 0.701 | S10: 0.703 | T10: 0.705 | U10: 0.707 | V10: 0.709 | W10: 0.711 | X10: 0.713 | Y10: 0.715 | Z10: 0.717 | AA10: 0.719 | AB10: 0.721
A11: 52 | B11: 0.705 | C11: 0.707 | D11: 0.709 | E11: 0.712 | F11: 0.714 | G11: 0.716 | H11: 0.719 | I11: 0.721 | J11: 0.723 | K11: 0.726 | L11: 0.728 | M11: 0.73 | P11: 52 | Q11: 0.723 | R11: 0.725 | S11: 0.728 | T11: 0.73 | U11: 0.732 | V11: 0.734 | W11: 0.736 | X11: 0.739 | Y11: 0.741 | Z11: 0.743 | AA11: 0.745 | AB11: 0.747
A12: 53 | B12: 0.733 | C12: 0.735 | D12: 0.738 | E12: 0.74 | F12: 0.743 | G12: 0.745 | H12: 0.748 | I12: 0.75 | J12: 0.753 | K12: 0.755 | L12: 0.758 | M12: 0.76 | P12: 53 | Q12: 0.749 | R12: 0.752 | S12: 0.754 | T12: 0.757 | U12: 0.759 | V12: 0.761 | W12: 0.764 | X12: 0.766 | Y12: 0.768 | Z12: 0.771 | AA12: 0.773 | AB12: 0.775
A13: 54 | B13: 0.763 | C13: 0.766 | D13: 0.768 | E13: 0.771 | F13: 0.774 | G13: 0.777 | H13: 0.779 | I13: 0.782 | J13: 0.785 | K13: 0.788 | L13: 0.79 | M13: 0.793 | P13: 54 | Q13: 0.778 | R13: 0.78 | S13: 0.783 | T13: 0.786 | U13: 0.788 | V13: 0.791 | W13: 0.793 | X13: 0.796 | Y13: 0.798 | Z13: 0.801 | AA13: 0.803 | AB13: 0.806
A14: 55 | B14: 0.796 | C14: 0.799 | D14: 0.802 | E14: 0.805 | F14: 0.808 | G14: 0.811 | H14: 0.814 | I14: 0.817 | J14: 0.82 | K14: 0.822 | L14: 0.825 | M14: 0.828 | P14: 55 | Q14: 0.809 | R14: 0.811 | S14: 0.814 | T14: 0.817 | U14: 0.82 | V14: 0.822 | W14: 0.825 | X14: 0.828 | Y14: 0.831 | Z14: 0.834 | AA14: 0.836 | AB14: 0.839
A15: 56 | B15: 0.831 | C15: 0.835 | D15: 0.838 | E15: 0.841 | F15: 0.844 | G15: 0.847 | H15: 0.85 | I15: 0.854 | J15: 0.857 | K15: 0.86 | L15: 0.863 | M15: 0.866 | P15: 56 | Q15: 0.842 | R15: 0.845 | S15: 0.848 | T15: 0.851 | U15: 0.854 | V15: 0.857 | W15: 0.86 | X15: 0.863 | Y15: 0.866 | Z15: 0.869 | AA15: 0.871 | AB15: 0.874
A16: 57 | B16: 0.869 | C16: 0.873 | D16: 0.876 | E16: 0.879 | F16: 0.883 | G16: 0.886 | H16: 0.89 | I16: 0.893 | J16: 0.896 | K16: 0.9 | L16: 0.903 | M16: 0.907 | P16: 57 | Q16: 0.877 | R16: 0.881 | S16: 0.884 | T16: 0.887 | U16: 0.89 | V16: 0.893 | W16: 0.896 | X16: 0.9 | Y16: 0.903 | Z16: 0.906 | AA16: 0.909 | AB16: 0.912
A17: 58 | B17: 0.91 | C17: 0.914 | D17: 0.917 | E17: 0.921 | F17: 0.924 | G17: 0.928 | H17: 0.932 | I17: 0.935 | J17: 0.939 | K17: 0.943 | L17: 0.946 | M17: 0.95 | P17: 58 | Q17: 0.915 | R17: 0.919 | S17: 0.922 | T17: 0.926 | U17: 0.929 | V17: 0.932 | W17: 0.936 | X17: 0.939 | Y17: 0.943 | Z17: 0.946 | AA17: 0.949 | AB17: 0.953
A18: 59 | B18: 0.953 | C18: 0.957 | D18: 0.961 | E18: 0.965 | F18: 0.969 | G18: 0.973 | H18: 0.977 | I18: 0.981 | J18: 0.985 | K18: 0.989 | L18: 0.993 | M18: 0.996 | P18: 59 | Q18: 0.956 | R18: 0.96 | S18: 0.964 | T18: 0.967 | U18: 0.971 | V18: 0.975 | W18: 0.978 | X18: 0.982 | Y18: 0.985 | Z18: 0.989 | AA18: 0.993 | AB18: 0.996
A20: Notes: | B20: (1) these factors are applicable to use to calculate the actuarial reduction on voluntary early retirement for 1995 section members’ main scheme benefits, 1995 section members’ NPA 60 Added Years’ benefits and 1995 section members’ NPA 60 Additional Pension benefits (contracts exercised from 1 April 2011 onwards) (subject to note 5)
B21: (2) benefits to be awarded are obtained by multiplying the accrued benefits (see note 3 below for Added Years’ benefits) by the relevant factor
B22: (3) amount of Added Years’ benefit must first be multiplied by an appropriate proportion. This is calculated as 'period for which contributions were paid divided by period for which contributions should have been paid'
B23: (4) reduced benefits to be calculated before any lump sum commutation option is exercised
B24: (5) factors NOT to be used for former members with preserved benefits retiring early below age 55 – see Table ERF3
A30: 2008
A31: TABLE ERF2 | B31: Updated 29/01/2019 | P31: TABLE ERF2 | R31: Updated 13/07/2023
A32: NHS SUPERANNUATION SCHEME SCOTLAND: ACTUARIAL FACTORS | P32: NHS SUPERANNUATION SCHEME SCOTLAND: ACTUARIAL FACTORS
A33: BENEFITS PAYABLE TO THE MEMBER ON VOLUNTARY EARLY RETIREMENT (WITH ACTUARIAL REDUCTION) | P33: BENEFITS PAYABLE TO THE MEMBER ON VOLUNTARY EARLY RETIREMENT (WITH ACTUARIAL REDUCTION)
A34: MEMBERS OF 1995 or 2008 SECTION (RELATIVE TO PENSION AGE OF 65) | P34: MEMBERS OF 1995 or 2008 SECTION (RELATIVE TO PENSION AGE OF 65)
A36: Age: complete months | B36: 0 | C36: 1 | D36: 2 | E36: 3 | F36: 4 | G36: 5 | H36: 6 | I36: 7 | J36: 8 | K36: 9 | L36: 10 | M36: 11 | P36: Age: complete months | Q36: 0 | R36: 1 | S36: 2 | T36: 3 | U36: 4 | V36: 5 | W36: 6 | X36: 7 | Y36: 8 | Z36: 9 | AA36: 10 | AB36: 11
A37: PENSION FACTORS | P37: PENSION FACTORS
A38: Complete Years | P38: Complete Years
A39: 50 | B39: 0.51 | C39: 0.511 | D39: 0.513 | E39: 0.515 | F39: 0.516 | G39: 0.518 | H39: 0.519 | I39: 0.521 | J39: 0.522 | K39: 0.524 | L39: 0.525 | M39: 0.527 | P39: 50 | Q39: 0.534 | R39: 0.535 | S39: 0.537 | T39: 0.538 | U39: 0.54 | V39: 0.541 | W39: 0.543 | X39: 0.544 | Y39: 0.546 | Z39: 0.547 | AA39: 0.548 | AB39: 0.55
A40: 51 | B40: 0.528 | C40: 0.53 | D40: 0.532 | E40: 0.533 | F40: 0.535 | G40: 0.537 | H40: 0.538 | I40: 0.54 | J40: 0.542 | K40: 0.543 | L40: 0.545 | M40: 0.547 | P40: 51 | Q40: 0.551 | R40: 0.553 | S40: 0.555 | T40: 0.556 | U40: 0.558 | V40: 0.559 | W40: 0.561 | X40: 0.562 | Y40: 0.564 | Z40: 0.566 | AA40: 0.567 | AB40: 0.569
A41: 52 | B41: 0.548 | C41: 0.55 | D41: 0.552 | E41: 0.554 | F41: 0.556 | G41: 0.557 | H41: 0.559 | I41: 0.561 | J41: 0.563 | K41: 0.564 | L41: 0.566 | M41: 0.568 | P41: 52 | Q41: 0.57 | R41: 0.572 | S41: 0.574 | T41: 0.575 | U41: 0.577 | V41: 0.579 | W41: 0.58 | X41: 0.582 | Y41: 0.584 | Z41: 0.585 | AA41: 0.587 | AB41: 0.589
A42: 53 | B42: 0.57 | C42: 0.572 | D42: 0.574 | E42: 0.576 | F42: 0.578 | G42: 0.58 | H42: 0.581 | I42: 0.583 | J42: 0.585 | K42: 0.587 | L42: 0.589 | M42: 0.591 | P42: 53 | Q42: 0.591 | R42: 0.592 | S42: 0.594 | T42: 0.596 | U42: 0.598 | V42: 0.6 | W42: 0.602 | X42: 0.603 | Y42: 0.605 | Z42: 0.607 | AA42: 0.609 | AB42: 0.611
A43: 54 | B43: 0.593 | C43: 0.595 | D43: 0.597 | E43: 0.599 | F43: 0.601 | G43: 0.604 | H43: 0.606 | I43: 0.608 | J43: 0.61 | K43: 0.612 | L43: 0.614 | M43: 0.616 | P43: 54 | Q43: 0.613 | R43: 0.615 | S43: 0.617 | T43: 0.619 | U43: 0.62 | V43: 0.622 | W43: 0.624 | X43: 0.626 | Y43: 0.628 | Z43: 0.63 | AA43: 0.632 | AB43: 0.634
A44: 55 | B44: 0.618 | C44: 0.62 | D44: 0.623 | E44: 0.625 | F44: 0.627 | G44: 0.63 | H44: 0.632 | I44: 0.634 | J44: 0.636 | K44: 0.639 | L44: 0.641 | M44: 0.643 | P44: 55 | Q44: 0.636 | R44: 0.639 | S44: 0.641 | T44: 0.643 | U44: 0.645 | V44: 0.647 | W44: 0.649 | X44: 0.652 | Y44: 0.654 | Z44: 0.656 | AA44: 0.658 | AB44: 0.66
A45: 56 | B45: 0.646 | C45: 0.648 | D45: 0.65 | E45: 0.653 | F45: 0.655 | G45: 0.658 | H45: 0.66 | I45: 0.663 | J45: 0.665 | K45: 0.668 | L45: 0.67 | M45: 0.672 | P45: 56 | Q45: 0.662 | R45: 0.665 | S45: 0.667 | T45: 0.669 | U45: 0.672 | V45: 0.674 | W45: 0.676 | X45: 0.679 | Y45: 0.681 | Z45: 0.683 | AA45: 0.685 | AB45: 0.688
A46: 57 | B46: 0.675 | C46: 0.677 | D46: 0.68 | E46: 0.683 | F46: 0.685 | G46: 0.688 | H46: 0.69 | I46: 0.693 | J46: 0.696 | K46: 0.698 | L46: 0.701 | M46: 0.703 | P46: 57 | Q46: 0.69 | R46: 0.693 | S46: 0.695 | T46: 0.697 | U46: 0.7 | V46: 0.702 | W46: 0.705 | X46: 0.707 | Y46: 0.71 | Z46: 0.712 | AA46: 0.715 | AB46: 0.717
A47: 58 | B47: 0.706 | C47: 0.709 | D47: 0.712 | E47: 0.714 | F47: 0.717 | G47: 0.72 | H47: 0.723 | I47: 0.726 | J47: 0.728 | K47: 0.731 | L47: 0.734 | M47: 0.737 | P47: 58 | Q47: 0.72 | R47: 0.722 | S47: 0.725 | T47: 0.728 | U47: 0.73 | V47: 0.733 | W47: 0.736 | X47: 0.738 | Y47: 0.741 | Z47: 0.744 | AA47: 0.746 | AB47: 0.749
A48: 59 | B48: 0.74 | C48: 0.743 | D48: 0.746 | E48: 0.749 | F48: 0.752 | G48: 0.755 | H48: 0.758 | I48: 0.761 | J48: 0.764 | K48: 0.766 | L48: 0.769 | M48: 0.772 | P48: 59 | Q48: 0.752 | R48: 0.754 | S48: 0.757 | T48: 0.76 | U48: 0.763 | V48: 0.766 | W48: 0.769 | X48: 0.771 | Y48: 0.774 | Z48: 0.777 | AA48: 0.78 | AB48: 0.783
A49: 60 | B49: 0.775 | C49: 0.779 | D49: 0.782 | E49: 0.785 | F49: 0.788 | G49: 0.792 | H49: 0.795 | I49: 0.798 | J49: 0.801 | K49: 0.804 | L49: 0.808 | M49: 0.811 | P49: 60 | Q49: 0.786 | R49: 0.789 | S49: 0.792 | T49: 0.795 | U49: 0.798 | V49: 0.801 | W49: 0.804 | X49: 0.807 | Y49: 0.81 | Z49: 0.813 | AA49: 0.816 | AB49: 0.819
A50: 61 | B50: 0.814 | C50: 0.818 | D50: 0.821 | E50: 0.825 | F50: 0.828 | G50: 0.831 | H50: 0.835 | I50: 0.838 | J50: 0.842 | K50: 0.845 | L50: 0.849 | M50: 0.852 | P50: 61 | Q50: 0.822 | R50: 0.826 | S50: 0.829 | T50: 0.832 | U50: 0.836 | V50: 0.839 | W50: 0.842 | X50: 0.846 | Y50: 0.849 | Z50: 0.852 | AA50: 0.856 | AB50: 0.859
A51: 62 | B51: 0.856 | C51: 0.86 | D51: 0.863 | E51: 0.867 | F51: 0.871 | G51: 0.875 | H51: 0.878 | I51: 0.882 | J51: 0.886 | K51: 0.89 | L51: 0.893 | M51: 0.897 | P51: 62 | Q51: 0.862 | R51: 0.866 | S51: 0.869 | T51: 0.873 | U51: 0.877 | V51: 0.88 | W51: 0.884 | X51: 0.887 | Y51: 0.891 | Z51: 0.895 | AA51: 0.898 | AB51: 0.902
A52: 63 | B52: 0.901 | C52: 0.905 | D52: 0.909 | E52: 0.913 | F52: 0.917 | G52: 0.921 | H52: 0.926 | I52: 0.93 | J52: 0.934 | K52: 0.938 | L52: 0.942 | M52: 0.946 | P52: 63 | Q52: 0.905 | R52: 0.909 | S52: 0.913 | T52: 0.917 | U52: 0.921 | V52: 0.925 | W52: 0.929 | X52: 0.933 | Y52: 0.937 | Z52: 0.941 | AA52: 0.945 | AB52: 0.948
A53: 64 | B53: 0.95 | C53: 0.954 | D53: 0.958 | E53: 0.963 | F53: 0.967 | G53: 0.971 | H53: 0.975 | I53: 0.979 | J53: 0.983 | K53: 0.988 | L53: 0.992 | M53: 0.996 | P53: 64 | Q53: 0.952 | R53: 0.956 | S53: 0.96 | T53: 0.964 | U53: 0.968 | V53: 0.972 | W53: 0.976 | X53: 0.98 | Y53: 0.984 | Z53: 0.988 | AA53: 0.992 | AB53: 0.996
A55: Notes: | B55: (1) these factors are applicable to use for 2008 section members’ main scheme benefits, 1995 section members’ NPA 65 Added Years’ pension or 1995 or 2008 section members’ NPA 65 Additional Pension (contracts taken from 1 April 2011 onwards). See also paragraph 1.6 of the guidance.
B56: (2) benefits to be awarded are obtained by multiplying the accrued benefits (for Added Years’ pension see note 3) by the relevant factor
B57: (3) amount of Added Years’ benefit must first be multiplied by an appropriate proportion. This is calculated as 'period for which contributions were paid divided by period for which contributions should have been paid'
B58: (4) reduced benefits to be calculated before any lump sum commutation option is exercised
B59: (5) shaded figures to be used for 1995 section members only

Sheet VERA LS Factors (hidden)
A2: TABLE ERF7 | B2: Updated 29/01/2019 | P2: TABLE ERF7 | R2: Updated 13/07/2023
A3: NHS SUPERANNUATION SCHEME SCOTLAND: ACTUARIAL FACTORS | P3: NHS SUPERANNUATION SCHEME SCOTLAND: ACTUARIAL FACTORS
A4: BENEFITS PAYABLE TO THE MEMBER ON VOLUNTARY EARLY RETIREMENT (WITH ACTUARIAL REDUCTION) | P4: BENEFITS PAYABLE TO THE MEMBER ON VOLUNTARY EARLY RETIREMENT (WITH ACTUARIAL REDUCTION)
A5: MEMBERS OF 1995 SECTION (RELATIVE TO PENSION AGE OF 60) | P5: MEMBERS OF 1995 SECTION (RELATIVE TO PENSION AGE OF 60)
A7: AGE: complete months | B7: 0 | C7: 1 | D7: 2 | E7: 3 | F7: 4 | G7: 5 | H7: 6 | I7: 7 | J7: 8 | K7: 9 | L7: 10 | M7: 11 | P7: AGE: complete months | Q7: 0 | R7: 1 | S7: 2 | T7: 3 | U7: 4 | V7: 5 | W7: 6 | X7: 7 | Y7: 8 | Z7: 9 | AA7: 10 | AB7: 11
A8: LUMP SUM FACTORS | P8: LUMP SUM FACTORS
A9: Complete Years: | P9: Complete Years:
A10: 50 | B10: 0.789 | C10: 0.79 | D10: 0.792 | E10: 0.794 | F10: 0.795 | G10: 0.797 | H10: 0.798 | I10: 0.8 | J10: 0.801 | K10: 0.803 | L10: 0.805 | M10: 0.806 | P10: 50 | Q10: 0.845 | R10: 0.846 | S10: 0.847 | T10: 0.848 | U10: 0.85 | V10: 0.851 | W10: 0.852 | X10: 0.853 | Y10: 0.854 | Z10: 0.856 | AA10: 0.857 | AB10: 0.858
A11: 51 | B11: 0.808 | C11: 0.809 | D11: 0.811 | E11: 0.813 | F11: 0.814 | G11: 0.816 | H11: 0.817 | I11: 0.819 | J11: 0.821 | K11: 0.822 | L11: 0.824 | M11: 0.826 | P11: 51 | Q11: 0.859 | R11: 0.86 | S11: 0.862 | T11: 0.863 | U11: 0.864 | V11: 0.865 | W11: 0.867 | X11: 0.868 | Y11: 0.869 | Z11: 0.87 | AA11: 0.871 | AB11: 0.873
A12: 52 | B12: 0.827 | C12: 0.829 | D12: 0.83 | E12: 0.832 | F12: 0.834 | G12: 0.835 | H12: 0.837 | I12: 0.839 | J12: 0.84 | K12: 0.842 | L12: 0.844 | M12: 0.845 | P12: 52 | Q12: 0.874 | R12: 0.875 | S12: 0.876 | T12: 0.878 | U12: 0.879 | V12: 0.88 | W12: 0.881 | X12: 0.883 | Y12: 0.884 | Z12: 0.885 | AA12: 0.886 | AB12: 0.887
A13: 53 | B13: 0.847 | C13: 0.849 | D13: 0.85 | E13: 0.852 | F13: 0.854 | G13: 0.856 | H13: 0.857 | I13: 0.859 | J13: 0.861 | K13: 0.862 | L13: 0.864 | M13: 0.866 | P13: 53 | Q13: 0.889 | R13: 0.89 | S13: 0.891 | T13: 0.892 | U13: 0.894 | V13: 0.895 | W13: 0.896 | X13: 0.898 | Y13: 0.899 | Z13: 0.9 | AA13: 0.901 | AB13: 0.903
A14: 54 | B14: 0.867 | C14: 0.869 | D14: 0.871 | E14: 0.873 | F14: 0.874 | G14: 0.876 | H14: 0.878 | I14: 0.88 | J14: 0.881 | K14: 0.883 | L14: 0.885 | M14: 0.886 | P14: 54 | Q14: 0.904 | R14: 0.905 | S14: 0.906 | T14: 0.908 | U14: 0.909 | V14: 0.91 | W14: 0.911 | X14: 0.913 | Y14: 0.914 | Z14: 0.915 | AA14: 0.917 | AB14: 0.918
A15: 55 | B15: 0.888 | C15: 0.89 | D15: 0.892 | E15: 0.894 | F15: 0.895 | G15: 0.897 | H15: 0.899 | I15: 0.901 | J15: 0.902 | K15: 0.904 | L15: 0.906 | M15: 0.908 | P15: 55 | Q15: 0.919 | R15: 0.92 | S15: 0.922 | T15: 0.923 | U15: 0.924 | V15: 0.926 | W15: 0.927 | X15: 0.928 | Y15: 0.93 | Z15: 0.931 | AA15: 0.932 | AB15: 0.933
A16: 56 | B16: 0.909 | C16: 0.911 | D16: 0.913 | E16: 0.915 | F16: 0.917 | G16: 0.919 | H16: 0.92 | I16: 0.922 | J16: 0.924 | K16: 0.926 | L16: 0.928 | M16: 0.93 | P16: 56 | Q16: 0.935 | R16: 0.936 | S16: 0.937 | T16: 0.939 | U16: 0.94 | V16: 0.941 | W16: 0.943 | X16: 0.944 | Y16: 0.945 | Z16: 0.947 | AA16: 0.948 | AB16: 0.949
A17: 57 | B17: 0.931 | C17: 0.933 | D17: 0.935 | E17: 0.937 | F17: 0.939 | G17: 0.941 | H17: 0.942 | I17: 0.944 | J17: 0.946 | K17: 0.948 | L17: 0.95 | M17: 0.952 | P17: 57 | Q17: 0.951 | R17: 0.952 | S17: 0.953 | T17: 0.955 | U17: 0.956 | V17: 0.957 | W17: 0.959 | X17: 0.96 | Y17: 0.961 | Z17: 0.963 | AA17: 0.964 | AB17: 0.966
A18: 58 | B18: 0.954 | C18: 0.956 | D18: 0.957 | E18: 0.959 | F18: 0.961 | G18: 0.963 | H18: 0.965 | I18: 0.967 | J18: 0.969 | K18: 0.971 | L18: 0.973 | M18: 0.975 | P18: 58 | Q18: 0.967 | R18: 0.968 | S18: 0.97 | T18: 0.971 | U18: 0.972 | V18: 0.974 | W18: 0.975 | X18: 0.976 | Y18: 0.978 | Z18: 0.979 | AA18: 0.981 | AB18: 0.982
A19: 59 | B19: 0.977 | C19: 0.979 | D19: 0.98 | E19: 0.982 | F19: 0.984 | G19: 0.986 | H19: 0.988 | I19: 0.99 | J19: 0.992 | K19: 0.994 | L19: 0.996 | M19: 0.998 | P19: 59 | Q19: 0.983 | R19: 0.985 | S19: 0.986 | T19: 0.987 | U19: 0.989 | V19: 0.99 | W19: 0.992 | X19: 0.993 | Y19: 0.994 | Z19: 0.996 | AA19: 0.997 | AB19: 0.999
A21: Notes: | B21: (1) these factors are applicable to use to calculate the actuarial reduction on voluntary early retirement for 1995 section members’ main scheme lump sum benefits, 1995 section members’ NPA 60 Added Years’ lump sum benefits , 1995 section members’ NPA 60 unreduced retirement lump sum benefits and the amount of 2008 section members’ mandatory lump sum benefits payable on voluntary early retirement (where applicable) (subject to note 4)
B22: (2) benefits to be awarded are obtained by multiplying the accrued lump sum (for Added Years’ lump sum and unreduced retirement lump sums see note 3) by the relevant factor
B23: (3) the amount of the Added Years’ unreduced retirement lump sum or the unreduced retirement lump sum must first be multiplied by an appropriate proportion. This is calculated as 'period for which contributions were paid divided by period for which contributions should have been paid'
B24: (4) factors are NOT to be used for former members with preserved benefits retiring early below age 55 – see Table ERF9

Sheet PI Data (hidden)
A1: =MIN($B$2:$Z$2) -> 2020
A2: =MAX($B$2:$Z$2) -> 2026 | B2: 2020 | C2: 2021 | D2: 2022 | E2: 2023 | F2: 2024 | G2: 2025 | H2: 2026
A3: 1945-01-01 | B3: 42.3483 | C3: 42.5601 | D3: 43.8794 | E3: 48.3112 | F3: 51.5481 | G3: 52.4244 | H3: 54.4165
A4: 1946-01-01 | B4: 38.4955 | C4: 38.688 | D4: 39.8873 | E4: 43.9159 | F4: 46.8583 | G4: 47.6549 | H4: 49.4658
A5: 1947-01-01 | B5: 38.1512 | C5: 38.342 | D5: 39.5306 | E5: 43.5231 | F5: 46.4392 | G5: 47.2287 | H5: 49.0233
A6: 1948-01-01 | B6: 35.7247 | C6: 35.9034 | D6: 37.0164 | E6: 40.755 | F6: 43.4856 | G6: 44.2249 | H6: 45.9054
A7: 1949-01-01 | B7: 34.741 | C7: 34.9147 | D7: 35.9971 | E7: 39.6328 | F7: 42.2882 | G7: 43.0071 | H7: 44.6414
A8: 1950-01-01 | B8: 33.7573 | C8: 33.9261 | D8: 34.9778 | E8: 38.5106 | F8: 41.0908 | G8: 41.7893 | H8: 43.3773
A9: 1951-01-01 | B9: 30.921 | C9: 31.0756 | D9: 32.0389 | E9: 35.2749 | F9: 37.6383 | G9: 38.2781 | H9: 39.7327
A10: 1952-01-01 | B10: 28.3306 | C10: 28.4722 | D10: 29.3549 | E10: 32.3197 | F10: 34.4851 | G10: 35.0714 | H10: 36.4041
A11: 1953-01-01 | B11: 27.4616 | C11: 27.599 | D11: 28.4545 | E11: 31.3284 | F11: 33.4274 | G11: 33.9957 | H11: 35.2875
A12: 1954-01-01 | B12: 26.9698 | C12: 27.1046 | D12: 27.9449 | E12: 30.7673 | F12: 32.8287 | G12: 33.3868 | H12: 34.6555
A13: 1955-01-01 | B13: 25.8058 | C13: 25.9348 | D13: 26.7388 | E13: 29.4394 | F13: 31.4118 | G13: 31.9458 | H13: 33.1598
A14: 1956-01-01 | B14: 24.6089 | C14: 24.732 | D14: 25.4987 | E14: 28.074 | F14: 29.955 | G14: 30.4642 | H14: 31.6218
A15: 1957-01-01 | B15: 23.74 | C15: 23.8587 | D15: 24.5983 | E15: 27.0827 | F15: 28.8973 | G15: 29.3885 | H15: 30.5053
A16: 1958-01-01 | B16: 23.0186 | C16: 23.1337 | D16: 23.8508 | E16: 26.2598 | F16: 28.0192 | G16: 28.4955 | H16: 29.5783
A17: 1959-01-01 | B17: 22.9038 | C17: 23.0184 | D17: 23.7319 | E17: 26.1288 | F17: 27.8795 | G17: 28.3534 | H17: 29.4309
A18: 1960-01-01 | B18: 22.6743 | C18: 22.7877 | D18: 23.4941 | E18: 25.867 | F18: 27.6001 | G18: 28.0693 | H18: 29.1359
A19: 1961-01-01 | B19: 21.9365 | C19: 22.0462 | D19: 22.7296 | E19: 25.0253 | F19: 26.702 | G19: 27.156 | H19: 28.1879
A20: 1962-01-01 | B20: 21.0184 | C20: 21.1235 | D20: 21.7783 | E20: 23.9779 | F20: 25.5845 | G20: 26.0194 | H20: 27.0081
A21: 1963-01-01 | B21: 20.6249 | C21: 20.7281 | D21: 21.3706 | E21: 23.5291 | F21: 25.1055 | G21: 25.5323 | H21: 26.5025
A22: 1964-01-01 | B22: 19.9691 | C22: 20.069 | D22: 20.6911 | E22: 22.7809 | F22: 24.3072 | G22: 24.7205 | H22: 25.6598
A23: 1965-01-01 | B23: 19.051 | C23: 19.1463 | D23: 19.7398 | E23: 21.7335 | F23: 23.1897 | G23: 23.5839 | H23: 24.4801
A24: 1966-01-01 | B24: 18.3296 | C24: 18.4213 | D24: 18.9923 | E24: 20.9106 | F24: 22.3116 | G24: 22.6909 | H24: 23.5531
A25: 1967-01-01 | B25: 17.887 | C25: 17.9764 | D25: 18.5337 | E25: 20.4056 | F25: 21.7727 | G25: 22.1429 | H25: 22.9843
A26: 1968-01-01 | B26: 17.0836 | C26: 17.169 | D26: 17.7013 | E26: 19.4891 | F26: 20.7949 | G26: 21.1484 | H26: 21.952
A27: 1969-01-01 | B27: 16.395 | C27: 16.477 | D27: 16.9878 | E27: 18.7035 | F27: 19.9567 | G27: 20.2959 | H27: 21.0672
A28: 1969-04-02 | B28: 16.1171 | C28: 16.1977 | D28: 16.6998 | E28: 18.3865 | F28: 19.6184 | G28: 19.9519 | H28: 20.7101
A29: 1969-10-02 | B29: 15.8393 | C29: 15.9184 | D29: 16.4119 | E29: 18.0695 | F29: 19.2802 | G29: 19.6079 | H29: 20.353
A30: 1970-04-02 | B30: 15.2835 | C30: 15.3599 | D30: 15.8361 | E30: 17.4355 | F30: 18.6037 | G30: 18.9199 | H30: 19.6389
A31: 1970-10-02 | B31: 14.7277 | C31: 14.8014 | D31: 15.2602 | E31: 16.8015 | F31: 17.9272 | G31: 18.2319 | H31: 18.9248
A32: 1971-04-02 | B32: 14.0331 | C32: 14.1033 | D32: 14.5405 | E32: 16.0091 | F32: 17.0817 | G32: 17.3721 | H32: 18.0322
A33: 1971-10-02 | B33: 13.3505 | C33: 13.4172 | D33: 13.8331 | E33: 15.2303 | F33: 16.2507 | G33: 16.527 | H33: 17.155
A34: 1972-04-02 | B34: 13.085 | C34: 13.1504 | D34: 13.558 | E34: 14.9274 | F34: 15.9275 | G34: 16.1983 | H34: 16.8139
A35: 1972-07-02 | B35: 12.7697 | C35: 12.8336 | D35: 13.2314 | E35: 14.5678 | F35: 15.5438 | G35: 15.8081 | H35: 16.4088
A36: 1973-01-02 | B36: 12.2723 | C36: 12.3337 | D36: 12.716 | E36: 14.0004 | F36: 14.9384 | G36: 15.1923 | H36: 15.7697
A37: 1973-07-02 | B37: 11.7256 | C37: 11.7843 | D37: 12.1496 | E37: 13.3767 | F37: 14.2729 | G37: 14.5155 | H37: 15.0671
A38: 1974-01-02 | B38: 11.1498 | C38: 11.2055 | D38: 11.5529 | E38: 12.7197 | F38: 13.5719 | G38: 13.8027 | H38: 14.3272
A39: 1974-07-02 | B39: 10.1805 | C39: 10.2314 | D39: 10.5486 | E39: 11.614 | F39: 12.3921 | G39: 12.6028 | H39: 13.0817
A40: 1975-01-02 | B40: 9.4404 | C40: 9.4876 | D40: 9.7817 | E40: 10.7697 | F40: 11.4912 | G40: 11.6866 | H40: 12.1307
A41: 1975-07-02 | B41: 8.2472 | C41: 8.2884 | D41: 8.5453 | E41: 9.4084 | F41: 10.0388 | G41: 10.2094 | H41: 10.5974
A42: 1976-01-02 | B42: 7.527617535 | C42: 7.565255624 | D42: 7.799778548 | E42: 8.587556181 | F42: 9.1629 | G42: 9.318692127 | H42: 9.6728
A43: 1976-07-02 | B43: 7.024575624 | C43: 7.059698503 | D43: 7.278549156 | E43: 8.013682621 | F43: 8.5506 | G43: 8.695959546 | H43: 9.0264
A44: 1977-01-02 | B44: 6.548432841 | C44: 6.581175006 | D44: 6.785191431 | E44: 7.470495765 | F44: 7.971 | G44: 8.106526305 | H44: 8.4146
A45: 1977-07-02 | B45: 5.998718188 | C45: 6.02871178 | D45: 6.215601845 | E45: 6.843377631 | F45: 7.3019 | G45: 7.426015959 | H45: 7.7082
A46: 1978-01-02 | B46: 5.774313584 | C46: 5.803185153 | D46: 5.983083892 | E46: 6.587375365 | F46: 7.0287 | G46: 7.148217917 | H46: 7.4199
A47: 1978-07-02 | B47: 5.81772238 | C47: 5.846810993 | D47: 6.028062134 | E47: 6.636896409 | F47: 7.0816 | G47: 7.201955133 | H47: 7.4756
A48: 1978-07-28 | B48: 5.751665516 | C48: 5.780423845 | D48: 5.959616984 | E48: 6.561538299 | F48: 7.0012 | G48: 7.120181108 | H48: 7.3907
A49: 1978-08-28 | B49: 5.680890305 | C49: 5.709294758 | D49: 5.886282895 | E49: 6.480797467 | F49: 6.915 | G49: 7.032566082 | H49: 7.2998
A50: 1978-09-28 | B50: 5.614833441 | C50: 5.642907609 | D50: 5.817837745 | E50: 6.405439357 | F50: 6.8346 | G50: 6.950792058 | H50: 7.2149
A51: 1978-10-28 | B51: 5.54405823 | C51: 5.571778522 | D51: 5.744503655 | E51: 6.324698524 | F51: 6.7485 | G51: 6.863177032 | H51: 7.124
A52: 1978-11-28 | B52: 5.473283018 | C52: 5.500649434 | D52: 5.671169566 | E52: 6.243957692 | F52: 6.6623 | G52: 6.775562006 | H52: 7.033
A53: 1978-12-28 | B53: 5.407226154 | C53: 5.434262286 | D53: 5.602724416 | E53: 6.168599582 | F53: 6.5819 | G53: 6.693787982 | H53: 6.9482
A54: 1979-01-28 | B54: 5.336450943 | C54: 5.363133198 | D54: 5.529390327 | E54: 6.08785875 | F54: 6.4957 | G54: 6.606172956 | H54: 6.8572
A55: 1979-02-28 | B55: 5.270394079 | C55: 5.29674605 | D55: 5.460945177 | E55: 6.01250064 | F55: 6.4153 | G55: 6.524398932 | H55: 6.7723
A56: 1979-03-28 | B56: 5.199618867 | C56: 5.225616962 | D56: 5.387611088 | E56: 5.931759808 | F56: 6.3292 | G56: 6.436783906 | H56: 6.6814
A57: 1979-04-28 | B57: 5.133562003 | C57: 5.159229814 | D57: 5.319165938 | E57: 5.856401697 | F57: 6.2488 | G57: 6.355009882 | H57: 6.5965
A58: 1979-05-28 | B58: 5.062786792 | C58: 5.088100727 | D58: 5.245831849 | E58: 5.775660865 | F58: 6.1626 | G58: 6.267394856 | H58: 6.5056
A59: 1979-06-28 | B59: 4.99201158 | C59: 5.016971639 | D59: 5.17249776 | E59: 5.694920033 | F59: 6.0765 | G59: 6.17977983 | H59: 6.4146
A60: 1979-07-28 | B60: 4.925954716 | C60: 4.950584491 | D60: 5.10405261 | E60: 5.619561923 | F60: 5.9961 | G60: 6.098005806 | H60: 6.3297
A61: 1979-08-28 | B61: 4.855179505 | C61: 4.879455403 | D61: 5.03071852 | E61: 5.538821091 | F61: 5.9099 | G61: 6.01039078 | H61: 6.2388
A62: 1979-09-28 | B62: 4.789122641 | C62: 4.813068255 | D62: 4.96227337 | E62: 5.463462981 | F62: 5.8295 | G62: 5.928616756 | H62: 6.1539
A63: 1979-10-28 | B63: 4.718347429 | C63: 4.741939167 | D63: 4.888939281 | E63: 5.382722148 | F63: 5.7434 | G63: 5.84100173 | H63: 6.063
A64: 1979-12-09 | B64: 4.661646259 | C64: 4.684954491 | D64: 4.83018808 | E64: 5.318037075 | F64: 5.6743 | G64: 5.770809434 | H64: 5.9901
A65: 1980-01-09 | B65: 4.608995171 | C65: 4.632040148 | D65: 4.775633392 | E65: 5.257972365 | F65: 5.6103 | G65: 5.705630874 | H65: 5.9224
A66: 1980-02-09 | B66: 4.552294001 | C66: 4.575055471 | D66: 4.716882191 | E66: 5.193287292 | F66: 5.5412 | G66: 5.635438579 | H66: 5.8496
A67: 1980-03-09 | B67: 4.49559283 | C67: 4.518070795 | D67: 4.658130989 | E67: 5.128602219 | F67: 5.4722 | G67: 5.565246283 | H67: 5.7767
A68: 1980-04-09 | B68: 4.438891659 | C68: 4.461086118 | D68: 4.599379787 | E68: 5.063917146 | F68: 5.4032 | G68: 5.495053988 | H68: 5.7039
A69: 1980-05-09 | B69: 4.386240572 | C69: 4.408171775 | D69: 4.5448251 | E69: 5.003852435 | F69: 5.3391 | G69: 5.429875428 | H69: 5.6362
A70: 1980-06-09 | B70: 4.329539401 | C70: 4.351187099 | D70: 4.486073898 | E70: 4.939167362 | F70: 5.2701 | G70: 5.359683132 | H70: 5.5634
A71: 1980-07-09 | B71: 4.27283823 | C71: 4.294202422 | D71: 4.427322697 | E71: 4.874482289 | F71: 5.2011 | G71: 5.289490837 | H71: 5.4905
A72: 1980-08-09 | B72: 4.216137059 | C72: 4.237217745 | D72: 4.368571495 | E72: 4.809797216 | F72: 5.1321 | G72: 5.219298541 | H72: 5.4176
A73: 1980-09-09 | B73: 4.163485972 | C73: 4.184303403 | D73: 4.314016808 | E73: 4.749732505 | F73: 5.068 | G73: 5.154119981 | H73: 5.35
A74: 1980-10-09 | B74: 4.106784801 | C74: 4.127318726 | D74: 4.255265606 | E74: 4.685047432 | F74: 4.9989 | G74: 5.083927686 | H74: 5.2771
A75: 1980-11-09 | B75: 4.05008363 | C75: 4.070334049 | D75: 4.196514404 | E75: 4.620362359 | F75: 4.9299 | G75: 5.01373539 | H75: 5.2043
A76: 1980-12-08 | B76: 4.022231414 | C76: 4.042342572 | D76: 4.167655191 | E76: 4.588588365 | F76: 4.896 | G76: 4.97925619 | H76: 5.1685
A77: 1981-01-08 | B77: 3.994007835 | C77: 4.013977875 | D77: 4.138411188 | E77: 4.556390718 | F77: 4.8617 | G77: 4.944317268 | H77: 5.1322
A78: 1981-02-08 | B78: 3.966155618 | C78: 3.985986397 | D78: 4.109551975 | E78: 4.524616724 | F78: 4.8278 | G78: 4.909838068 | H78: 5.0964
A79: 1981-03-08 | B79: 3.937932039 | C79: 3.9576217 | D79: 4.080307972 | E79: 4.492419077 | F79: 4.7934 | G79: 4.874899145 | H79: 5.0601
A80: 1981-04-08 | B80: 3.910079822 | C80: 3.929630222 | D80: 4.051448759 | E80: 4.460645083 | F80: 4.7595 | G80: 4.840419945 | H80: 5.0244
A81: 1981-05-08 | B81: 3.881856243 | C81: 3.901265525 | D81: 4.022204756 | E81: 4.428447436 | F81: 4.7252 | G81: 4.805481023 | H81: 4.9881
A82: 1981-06-08 | B82: 3.854004027 | C82: 3.873274048 | D82: 3.993345543 | E82: 4.396673442 | F82: 4.6913 | G82: 4.771001823 | H82: 4.9523
A83: 1981-07-08 | B83: 3.825780447 | C83: 3.84490935 | D83: 3.96410154 | E83: 4.364475795 | F83: 4.6569 | G83: 4.7360629 | H83: 4.916
A84: 1981-08-08 | B84: 3.797928231 | C84: 3.816917873 | D84: 3.935242327 | E84: 4.332701801 | F84: 4.623 | G84: 4.7015837 | H84: 4.8802
A85: 1981-09-08 | B85: 3.769704652 | C85: 3.788553176 | D85: 3.905998324 | E85: 4.300504154 | F85: 4.5886 | G85: 4.666644778 | H85: 4.844
A86: 1981-10-08 | B86: 3.741852435 | C86: 3.760561698 | D86: 3.877139111 | E86: 4.268730161 | F86: 4.5547 | G86: 4.632165578 | H86: 4.8082
A87: 1981-11-08 | B87: 3.713628856 | C87: 3.732197001 | D87: 3.847895108 | E87: 4.236532513 | F87: 4.5204 | G87: 4.597226655 | H87: 4.7719
A88: 1981-12-07 | B88: 3.683518352 | C88: 3.701935944 | D88: 3.816695958 | E88: 4.20218225 | F88: 4.4837 | G88: 4.559951844 | H88: 4.7332
A89: 1982-01-07 | B89: 3.653407848 | C89: 3.671674887 | D89: 3.785496809 | E89: 4.167831986 | F89: 4.4471 | G89: 4.522677034 | H89: 4.6945
A90: 1982-02-07 | B90: 3.623297343 | C90: 3.641413831 | D90: 3.754297659 | E90: 4.133481723 | F90: 4.4104 | G90: 4.485402223 | H90: 4.6558
A91: 1982-03-07 | B91: 3.589841227 | C91: 3.607790434 | D91: 3.719631937 | E91: 4.095314763 | F91: 4.3697 | G91: 4.443985767 | H91: 4.6129
A92: 1982-04-07 | B92: 3.559730723 | C92: 3.577529377 | D92: 3.688432788 | E92: 4.060964499 | F92: 4.333 | G92: 4.406710956 | H92: 4.5742
A93: 1982-05-07 | B93: 3.529620219 | C93: 3.547268321 | D93: 3.657233638 | E93: 4.026614236 | F93: 4.2964 | G93: 4.369436145 | H93: 4.5355
A94: 1982-06-07 | B94: 3.499509715 | C94: 3.517007264 | D94: 3.626034489 | E94: 3.992263972 | F94: 4.2597 | G94: 4.332161335 | H94: 4.4968
A95: 1982-07-07 | B95: 3.469399211 | C95: 3.486746207 | D95: 3.594835339 | E95: 3.957913708 | F95: 4.2231 | G95: 4.294886524 | H95: 4.4581
A96: 1982-08-07 | B96: 3.439288706 | C96: 3.45648515 | D96: 3.56363619 | E96: 3.923563445 | F96: 4.1864 | G96: 4.257611713 | H96: 4.4194
A97: 1982-09-07 | B97: 3.40583259 | C97: 3.422861754 | D97: 3.528970468 | E97: 3.885396485 | F97: 4.1457 | G97: 4.216195257 | H97: 4.3764
A98: 1982-10-07 | B98: 3.375722086 | C98: 3.392600697 | D98: 3.497771319 | E98: 3.851046222 | F98: 4.1091 | G98: 4.178920446 | H98: 4.3377
A99: 1982-11-07 | B99: 3.345611582 | C99: 3.36233964 | D99: 3.466572169 | E99: 3.816695958 | F99: 4.0724 | G99: 4.141645635 | H99: 4.299
A100: 1982-12-06 | B100: 3.33593286 | C100: 3.352612525 | D100: 3.456543513 | E100: 3.805654407 | F100: 4.0606 | G100: 4.129664018 | H100: 4.2866
A101: 1983-01-06 | B101: 3.326254138 | C101: 3.342885409 | D101: 3.446514857 | E101: 3.794612857 | F101: 4.0489 | G101: 4.117682401 | H101: 4.2742
A102: 1983-02-06 | B102: 3.316575416 | C102: 3.333158294 | D102: 3.4364862 | E102: 3.783571306 | F102: 4.0371 | G102: 4.105700784 | H102: 4.2617
A103: 1983-03-06 | B103: 3.306896694 | C103: 3.323431178 | D103: 3.426457544 | E103: 3.772529756 | F103: 4.0253 | G103: 4.093719167 | H103: 4.2493
A104: 1983-04-06 | B104: 3.297217972 | C104: 3.313704062 | D104: 3.416428888 | E104: 3.761488205 | F104: 4.0135 | G104: 4.08173755 | H104: 4.2368
A105: 1983-05-06 | B105: 3.28753925 | C105: 3.303976947 | D105: 3.406400232 | E105: 3.750446655 | F105: 4.0017 | G105: 4.069755933 | H105: 4.2244
A106: 1983-06-06 | B106: 3.274634287 | C106: 3.291007459 | D106: 3.39302869 | E106: 3.735724588 | F106: 3.986 | G106: 4.053780443 | H106: 4.2078
A107: 1983-07-06 | B107: 3.264955565 | C107: 3.281280343 | D107: 3.383000034 | E107: 3.724683037 | F107: 3.9742 | G107: 4.041798826 | H107: 4.1954
A108: 1983-08-06 | B108: 3.255276843 | C108: 3.271553228 | D108: 3.372971378 | E108: 3.713641487 | F108: 3.9625 | G108: 4.029817209 | H108: 4.183
A109: 1983-09-06 | B109: 3.245598121 | C109: 3.261826112 | D109: 3.362942721 | E109: 3.702599936 | F109: 3.9507 | G109: 4.017835592 | H109: 4.1705
A110: 1983-10-06 | B110: 3.235919399 | C110: 3.252098997 | D110: 3.352914065 | E110: 3.691558386 | F110: 3.9389 | G110: 4.005853975 | H110: 4.1581
A111: 1983-11-06 | B111: 3.226240677 | C111: 3.242371881 | D111: 3.342885409 | E111: 3.680516835 | F111: 3.9271 | G111: 3.993872358 | H111: 4.1456
A112: 1983-12-11 | B112: 3.21396193 | C112: 3.23003174 | D112: 3.330162724 | E112: 3.666509159 | F112: 3.9122 | G112: 3.978672083 | H112: 4.1299
A113: 1984-01-11 | B113: 3.201683184 | C113: 3.2176916 | D113: 3.31744004 | E113: 3.652501483 | F113: 3.8972 | G113: 3.963471807 | H113: 4.1141
A114: 1984-02-11 | B114: 3.18633475 | C114: 3.202266425 | D114: 3.301536684 | E114: 3.634991888 | F114: 3.8785 | G114: 3.944471463 | H114: 4.0944
A115: 1984-03-11 | B115: 3.174056004 | C115: 3.189926284 | D115: 3.288813999 | E115: 3.620984213 | F115: 3.8636 | G115: 3.929271188 | H115: 4.0786
A116: 1984-04-11 | B116: 3.161777257 | C116: 3.177586144 | D116: 3.276091314 | E116: 3.606976537 | F116: 3.8486 | G116: 3.914070912 | H116: 4.0628
A117: 1984-05-11 | B117: 3.149498511 | C117: 3.165246004 | D117: 3.26336863 | E117: 3.592968861 | F117: 3.8337 | G117: 3.898870637 | H117: 4.047
A118: 1984-06-11 | B118: 3.134150077 | C118: 3.149820828 | D118: 3.247465274 | E118: 3.575459266 | F118: 3.815 | G118: 3.879870293 | H118: 4.0273
A119: 1984-07-11 | B119: 3.121871331 | C119: 3.137480688 | D119: 3.234742589 | E119: 3.56145159 | F119: 3.8001 | G119: 3.864670017 | H119: 4.0115
A120: 1984-08-11 | B120: 3.109592584 | C120: 3.125140547 | D120: 3.222019904 | E120: 3.547443914 | F120: 3.7851 | G120: 3.849469742 | H120: 3.9957
A121: 1984-09-11 | B121: 3.097313837 | C121: 3.112800407 | D121: 3.20929722 | E121: 3.533436238 | F121: 3.7702 | G121: 3.834269467 | H121: 3.98
A122: 1984-10-11 | B122: 3.081965404 | C122: 3.097375232 | D122: 3.193393864 | E122: 3.515926644 | F122: 3.7515 | G122: 3.815269122 | H122: 3.9602
A123: 1984-11-11 | B123: 3.069686657 | C123: 3.085035091 | D123: 3.180671179 | E123: 3.501918968 | F123: 3.7365 | G123: 3.800068847 | H123: 3.9445
A124: 1984-12-10 | B124: 3.052473461 | C124: 3.067735829 | D124: 3.16283564 | E124: 3.482282039 | F124: 3.7156 | G124: 3.77876005 | H124: 3.9224
A125: 1985-01-10 | B125: 3.035260265 | C125: 3.050436567 | D125: 3.1450001 | E125: 3.46264511 | F125: 3.6946 | G125: 3.757451252 | H125: 3.9002
A126: 1985-02-10 | B126: 3.020915935 | C126: 3.036020515 | D126: 3.130137151 | E126: 3.446281003 | F126: 3.6772 | G126: 3.739693921 | H126: 3.8818
A127: 1985-03-10 | B127: 3.003702739 | C127: 3.018721253 | D127: 3.112301611 | E127: 3.426644074 | F127: 3.6562 | G127: 3.718385124 | H127: 3.8597
A128: 1985-04-10 | B128: 2.986489542 | C128: 3.001421991 | D128: 3.094466072 | E128: 3.407007145 | F128: 3.6353 | G128: 3.697076327 | H128: 3.8376
A129: 1985-05-10 | B129: 2.969276346 | C129: 2.984122728 | D129: 3.076630533 | E129: 3.387370216 | F129: 3.6143 | G129: 3.67576753 | H129: 3.8154
A130: 1985-06-10 | B130: 2.95206315 | C130: 2.966823466 | D130: 3.058794994 | E130: 3.367733288 | F130: 3.5934 | G130: 3.654458732 | H130: 3.7933
A131: 1985-07-10 | B131: 2.934849954 | C131: 2.949524204 | D131: 3.040959454 | E131: 3.348096359 | F131: 3.5724 | G131: 3.633149935 | H131: 3.7712
A132: 1985-08-10 | B132: 2.920505624 | C132: 2.935108152 | D132: 3.026096505 | E132: 3.331732251 | F132: 3.555 | G132: 3.615392604 | H132: 3.7528
A133: 1985-09-10 | B133: 2.903292427 | C133: 2.91780889 | D133: 3.008260965 | E133: 3.312095323 | F133: 3.534 | G133: 3.594083807 | H133: 3.7307
A134: 1985-10-10 | B134: 2.886079231 | C134: 2.900509628 | D134: 2.990425426 | E134: 3.292458394 | F134: 3.5131 | G134: 3.572775009 | H134: 3.7085
A135: 1985-11-10 | B135: 2.868866035 | C135: 2.883210366 | D135: 2.972589887 | E135: 3.272821465 | F135: 3.4921 | G135: 3.551466212 | H135: 3.6864
A136: 1985-12-13 | B136: 2.864893322 | C136: 2.879217789 | D136: 2.968473541 | E136: 3.268289368 | F136: 3.4873 | G136: 3.546548257 | H136: 3.6813
A137: 1986-01-13 | B137: 2.861204375 | C137: 2.875510397 | D137: 2.964651219 | E137: 3.264080992 | F137: 3.4828 | G137: 3.541981584 | H137: 3.6766
A138: 1986-02-13 | B138: 2.857231662 | C138: 2.871517821 | D138: 2.960534873 | E138: 3.259548895 | F138: 3.4779 | G138: 3.537063629 | H138: 3.6715
A139: 1986-03-13 | B139: 2.85325895 | C139: 2.867525245 | D139: 2.956418527 | E139: 3.255016798 | F139: 3.4731 | G139: 3.532145674 | H139: 3.6664
A140: 1986-04-13 | B140: 2.849286237 | C140: 2.863532669 | D140: 2.952302181 | E140: 3.250484701 | F140: 3.4683 | G140: 3.527227719 | H140: 3.6613
A141: 1986-05-13 | B141: 2.84559729 | C141: 2.859825277 | D141: 2.94847986 | E141: 3.246276326 | F141: 3.4638 | G141: 3.522661046 | H141: 3.6565
A142: 1986-06-13 | B142: 2.841624577 | C142: 2.8558327 | D142: 2.944363514 | E142: 3.241744229 | F142: 3.4589 | G142: 3.517743091 | H142: 3.6514
A143: 1986-07-13 | B143: 2.837651864 | C143: 2.851840124 | D143: 2.940247168 | E143: 3.237212132 | F143: 3.4541 | G143: 3.512825136 | H143: 3.6463
A144: 1986-08-22 | B144: 2.830425719 | C144: 2.844577848 | D144: 2.932759761 | E144: 3.228968497 | F144: 3.4453 | G144: 3.503879646 | H144: 3.637
A145: 1986-09-22 | B145: 2.823199573 | C145: 2.837315571 | D145: 2.925272354 | E145: 3.220724861 | F145: 3.4365 | G145: 3.494934155 | H145: 3.6277
A146: 1986-10-22 | B146: 2.815695498 | C146: 2.829773976 | D146: 2.91749697 | E146: 3.212164163 | F146: 3.4274 | G146: 3.485644608 | H146: 3.6181
A147: 1986-11-22 | B147: 2.808469353 | C147: 2.8225117 | D147: 2.910009562 | E147: 3.203920528 | F147: 3.4186 | G147: 3.476699118 | H147: 3.6088
A148: 1986-12-22 | B148: 2.801243207 | C148: 2.815249423 | D148: 2.902522155 | E148: 3.195676893 | F148: 3.4098 | G148: 3.467753628 | H148: 3.5995
A149: 1987-01-22 | B149: 2.794017061 | C149: 2.807987147 | D149: 2.895034748 | E149: 3.187433258 | F149: 3.401 | G149: 3.458808138 | H149: 3.5902
A150: 1987-02-22 | B150: 2.786512987 | C150: 2.800445552 | D150: 2.887259364 | E150: 3.17887256 | F150: 3.3919 | G150: 3.449518591 | H150: 3.5806
A151: 1987-03-22 | B151: 2.779286841 | C151: 2.793183275 | D151: 2.879771957 | E151: 3.170628924 | F151: 3.3831 | G151: 3.4405731 | H151: 3.5713
A152: 1987-04-27 | B152: 2.769951424 | C152: 2.783801182 | D152: 2.870099018 | E152: 3.159979019 | F152: 3.3717 | G152: 3.429016473 | H152: 3.5593
A153: 1987-05-27 | B153: 2.760616008 | C153: 2.774419088 | D153: 2.86042608 | E153: 3.149329114 | F153: 3.3603 | G153: 3.417459845 | H153: 3.5473
A154: 1987-06-27 | B154: 2.751280591 | C154: 2.765036995 | D154: 2.850753142 | E154: 3.138679209 | F154: 3.349 | G154: 3.405903218 | H154: 3.5353
A155: 1987-07-27 | B155: 2.741945175 | C155: 2.755654901 | D155: 2.841080203 | E155: 3.128029303 | F155: 3.3376 | G155: 3.39434659 | H155: 3.5233
A156: 1987-08-27 | B156: 2.732609759 | C156: 2.746272808 | D156: 2.831407265 | E156: 3.117379398 | F156: 3.3262 | G156: 3.382789963 | H156: 3.5113
A157: 1987-09-27 | B157: 2.723274342 | C157: 2.736890714 | D157: 2.821734326 | E157: 3.106729493 | F157: 3.3149 | G157: 3.371233335 | H157: 3.4993
A158: 1987-10-27 | B158: 2.713938926 | C158: 2.727508621 | D158: 2.812061388 | E158: 3.096079588 | F158: 3.3035 | G158: 3.359676708 | H158: 3.4873
A159: 1987-11-27 | B159: 2.704603509 | C159: 2.718126527 | D159: 2.802388449 | E159: 3.085429683 | F159: 3.2922 | G159: 3.34812008 | H159: 3.4753
A160: 1987-12-27 | B160: 2.695268093 | C160: 2.708744434 | D160: 2.792715511 | E160: 3.074779777 | F160: 3.2808 | G160: 3.336563453 | H160: 3.4634
A161: 1988-01-27 | B161: 2.685932676 | C161: 2.69936234 | D161: 2.783042573 | E161: 3.064129872 | F161: 3.2694 | G161: 3.325006825 | H161: 3.4514
A162: 1988-02-27 | B162: 2.67659726 | C162: 2.689980247 | D162: 2.773369634 | E162: 3.053479967 | F162: 3.2581 | G162: 3.313450198 | H162: 3.4394
A163: 1988-03-27 | B163: 2.667261843 | C163: 2.680598153 | D163: 2.763696696 | E163: 3.042830062 | F163: 3.2467 | G163: 3.30189357 | H163: 3.4274
A164: 1988-04-26 | B164: 2.654920405 | C164: 2.668195008 | D164: 2.750909053 | E164: 3.028750867 | F164: 3.2317 | G164: 3.286615687 | H164: 3.4115
A165: 1988-05-26 | B165: 2.642578967 | C165: 2.655791862 | D165: 2.73812141 | E165: 3.014671672 | F165: 3.2167 | G165: 3.271337804 | H165: 3.3956
A166: 1988-06-26 | B166: 2.630237529 | C166: 2.643388717 | D166: 2.725333767 | E166: 3.000592477 | F166: 3.2016 | G166: 3.25605992 | H166: 3.3798
A167: 1988-07-26 | B167: 2.617644225 | C167: 2.630732446 | D167: 2.712285152 | E167: 2.986225952 | F167: 3.1863 | G167: 3.240470243 | H167: 3.3636
A168: 1988-08-26 | B168: 2.605302786 | C168: 2.618329301 | D168: 2.699497509 | E168: 2.972146757 | F168: 3.1713 | G168: 3.22519236 | H168: 3.3477
A169: 1988-09-26 | B169: 2.592961348 | C169: 2.605926155 | D169: 2.686709866 | E169: 2.958067562 | F169: 3.1563 | G169: 3.209914477 | H169: 3.3319
A170: 1988-10-26 | B170: 2.58061991 | C170: 2.59352301 | D170: 2.673922223 | E170: 2.943988368 | F170: 3.1412 | G170: 3.194636593 | H170: 3.316
A171: 1988-11-26 | B171: 2.568278472 | C171: 2.581119865 | D171: 2.66113458 | E171: 2.929909173 | F171: 3.1262 | G171: 3.17935871 | H171: 3.3002
A172: 1988-12-26 | B172: 2.555685168 | C172: 2.568463594 | D172: 2.648085965 | E172: 2.915542647 | F172: 3.1109 | G172: 3.163769033 | H172: 3.284
A173: 1989-01-26 | B173: 2.543343729 | C173: 2.556060448 | D173: 2.635298322 | E173: 2.901463453 | F173: 3.0959 | G173: 3.14849115 | H173: 3.2681
A174: 1989-02-26 | B174: 2.531002291 | C174: 2.543657303 | D174: 2.622510679 | E174: 2.887384258 | F174: 3.0808 | G174: 3.133213266 | H174: 3.2523
A175: 1989-03-26 | B175: 2.518660853 | C175: 2.531254158 | D175: 2.609723037 | E175: 2.873305063 | F175: 3.0658 | G175: 3.117935383 | H175: 3.2364
A176: 1989-04-25 | B176: 2.503914047 | C176: 2.516433618 | D176: 2.59444306 | E176: 2.856481808 | F176: 3.0479 | G176: 3.099679813 | H176: 3.2175
A177: 1989-05-25 | B177: 2.488933165 | C177: 2.501377831 | D177: 2.578920543 | E177: 2.839391518 | F177: 3.0296 | G177: 3.081134473 | H177: 3.1982
A178: 1989-06-25 | B178: 2.474186358 | C178: 2.486557291 | D178: 2.563640567 | E178: 2.822568264 | F178: 3.0117 | G178: 3.062878903 | H178: 3.1793
A179: 1989-07-25 | B179: 2.459439552 | C179: 2.47173675 | D179: 2.54836059 | E179: 2.805745009 | F179: 2.9937 | G179: 3.044623334 | H179: 3.1603
A180: 1989-08-25 | B180: 2.44445867 | C180: 2.456680964 | D180: 2.532838073 | E180: 2.788654719 | F180: 2.9755 | G180: 3.026077993 | H180: 3.1411
A181: 1989-09-25 | B181: 2.429711864 | C181: 2.441860423 | D181: 2.517558097 | E181: 2.771831464 | F181: 2.9575 | G181: 3.007822423 | H181: 3.1221
A182: 1989-10-25 | B182: 2.414965058 | C182: 2.427039883 | D182: 2.50227812 | E182: 2.75500821 | F182: 2.9396 | G182: 2.989566854 | H182: 3.1032
A183: 1989-11-25 | B183: 2.399984175 | C183: 2.411984097 | D183: 2.486755603 | E183: 2.737917919 | F183: 2.9214 | G183: 2.971021513 | H183: 3.0839
A184: 1989-12-25 | B184: 2.385237369 | C184: 2.397163556 | D184: 2.471475627 | E184: 2.721094665 | F184: 2.9034 | G184: 2.952765944 | H184: 3.065
A185: 1990-01-25 | B185: 2.370490563 | C185: 2.382343016 | D185: 2.45619565 | E185: 2.70427141 | F185: 2.8855 | G185: 2.934510374 | H185: 3.046
A186: 1990-02-25 | B186: 2.355509681 | C186: 2.367287229 | D186: 2.440673133 | E186: 2.68718112 | F186: 2.8672 | G186: 2.915965033 | H186: 3.0268
A187: 1990-03-25 | B187: 2.340762875 | C187: 2.352466689 | D187: 2.425393157 | E187: 2.670357865 | F187: 2.8493 | G187: 2.897709464 | H187: 3.0078
A188: 1990-04-24 | B188: 2.321555533 | C188: 2.333163311 | D188: 2.405491373 | E188: 2.648446002 | F188: 2.8259 | G188: 2.873932046 | H188: 2.9831
A189: 1990-05-24 | B189: 2.302348191 | C189: 2.313859932 | D189: 2.38558959 | E189: 2.626534138 | F189: 2.8025 | G189: 2.850154629 | H189: 2.9585
A190: 1990-06-24 | B190: 2.283351919 | C190: 2.294768679 | D190: 2.365906507 | E190: 2.604863064 | F190: 2.7794 | G190: 2.826638501 | H190: 2.9341
A191: 1990-07-24 | B191: 2.264144577 | C191: 2.2754653 | D191: 2.346004724 | E191: 2.582951201 | F191: 2.756 | G191: 2.802861084 | H191: 2.9094
A192: 1990-08-24 | B192: 2.244937235 | C192: 2.256161921 | D192: 2.326102941 | E192: 2.561039338 | F192: 2.7326 | G192: 2.779083666 | H192: 2.8847
A193: 1990-09-24 | B193: 2.225729893 | C193: 2.236858543 | D193: 2.306201157 | E193: 2.539127474 | F193: 2.7092 | G193: 2.755306248 | H193: 2.86
A194: 1990-10-24 | B194: 2.206522551 | C194: 2.217555164 | D194: 2.286299374 | E194: 2.517215611 | F194: 2.6859 | G194: 2.731528831 | H194: 2.8353
A195: 1990-11-24 | B195: 2.187315209 | C195: 2.198251785 | D195: 2.266397591 | E195: 2.495303747 | F195: 2.6625 | G195: 2.707751413 | H195: 2.8106
A196: 1990-12-24 | B196: 2.168318937 | C196: 2.179160532 | D196: 2.246714508 | E196: 2.473632673 | F196: 2.6394 | G196: 2.684235286 | H196: 2.7862
A197: 1991-01-24 | B197: 2.149111595 | C197: 2.159857153 | D197: 2.226812725 | E197: 2.45172081 | F197: 2.616 | G197: 2.660457868 | H197: 2.7616
A198: 1991-02-24 | B198: 2.129904253 | C198: 2.140553775 | D198: 2.206910942 | E198: 2.429808947 | F198: 2.5926 | G198: 2.636680451 | H198: 2.7369
A199: 1991-03-24 | B199: 2.110696911 | C199: 2.121250396 | D199: 2.187009158 | E199: 2.407897083 | F199: 2.5692 | G199: 2.612903033 | H199: 2.7122
A200: 1991-04-22 | B200: 2.103803185 | C200: 2.114322201 | D200: 2.179866189 | E200: 2.400032674 | F200: 2.5608 | G200: 2.604369056 | H200: 2.7033
... 419 more rows

Sheet Contents (hidden)
E4: NHS Superannuation Scheme (Scotland) Preserved Benefits Estimate Calculator
B29: Disclaimer
B31: Please note that the illustration is not a guarantee or a statement of your legal entitlement. The calculator is NOT intended to provide you with financial advice. If you require financial advice, you should contact an independent financial advisor.
B35: Please refer to the SPPA website for contact information or any other details of benefits available through the NHS Superannuation Scheme (Scotland).

Sheet Guidance Notes (hidden)
B1: Guidance Notes
B5: Understanding your results This calculator is solely for guidance purposes and is an estimate only. It is not a statement of your legal entitlement and is not intended to provide you with financial advice. While every care has been taken in the preparation of this calculator the Scottish Public Pensions Agency will accept no responsibility for the accuracy of the information it provides. If you require financial advice, you should contact an authorised independent financial adviser. As you are no longer in pensionable employment, your basic retirement benefits should remain unchanged. These will be index linked in line with inflation. Please note, this calculator is only for 1995 or 2008 members. You should have received a preserved letter detailing the breakdown of your deferred retirement benefits. You will need this information to allow you to project a current estimate of your benefits. Please note that if your pension breakdown may not provide you with your deemed date which is used to calculate how much pension increase you may be entitled to. If this is the case the calculator will assume this date is the day after your last day worked (final year). If your pensionable salary used is your second or third last year this may underinflate the pension increase you are entitled to. Alternatively you can contact the Agency and request your deemed date. If your date of leaving is after 30 March 2000, you may claim your benefits prior to your Normal Pension Age (NPA) if you wish but this will be subject to a reduction as it will be paid early. If you are aged 55 or over the calculator will allow you to estimate your retirement benefits to include the VERA reduction. If you simply wish to have a current estimate of your deferred benefits please state "No" when prompted. To calculate your estimated benefits, you need to complete the necessary information under "Member Details". Once you have completed all the relevant information your estimated benefits will be shown on the "Benefit Certificate" and "Letter". If you do not complete all of the necessary information your estimate will not work. Each page allows you to go back to previous stages if you wish by simply clicking on the relevant box to where you wish to go. Practitioners If you are a Practitioner, please use the "Practitioners Member Details" as your preserved benefits are calculated differently. Once you have completed all the relevant information your estimated benefits will be shown on the "Practitioners Benefit Certificate" and "Practitioners Letter". If you do not complete all of the necessary information your estimate will not work.
B41: Disclaimer
B43: This calculator is intended for illustrative purposes only. This is not a statement of your legal entitlement. While every care has been taken in the preparation of this ready reckoner the Scottish Public Pensions Agency will accept no responsibility for the accuracy of the information it provides.
B48: Please refer to the SPPA website for contact information or any other details of benefits available through the NHS Superannuation Scheme (Scotland).

Sheet Member Details
F2: NHS Superannuation Scheme (Scotland) Preserved Benefits Estimate Calculator
E6: Member Details | J6: PLEASE COMPLETE ALL NECESSARY DATA
I8: Members Name | P8: Eg: Mr | J | Smith
H10: Superannuation Number
I12: Date of Birth | T12: =DATEDIF(K12,NOW(),"Y") -> 126 | U12: Yes
U13: No
I14: Scheme | S14: 1995
S15: 2008
H16: Last Day Worked in NHS | Q16: =IF(R16>=S16,"VERA","AGE") -> AGE | R16: =K16 -> 0 | S16: 36616
I18: Pensionable Salary
K20: Years | M20: Days
H21: Total Reckonable Service
G23: Deemed Date for Pension Increase | S23: =IF(K23="",K16+1,"") -> 1900-01-01
J25: =IF(T12>=55,"Are you looking for a Retirement Estimate? ","") -> Are you looking for a Retirement Estimate? | O25: =IF(K25="Yes","Retirement Date ","") ->  | S25: Yes
S26: No
I30: Additional Information if Letter and Certificate Required
I32: Address Line 1
I33: Address Line 2
I34: Address Line 3
I35: Address Line 4
I36: Post Code
I38: NI Number

Sheet Age (hidden)
C3: Period Calculator V 1.3
Q4: 1 | R4: 365 | S4: 31 | T4: 31
Q5: 2 | R5: 334 | S5: 59 | T5: 28
D6: dd | E6: mm | F6: yyyy | Q6: 3 | R6: 306 | S6: 90 | T6: 31
C7: Date From : | D7: =DAY(M15) -> 0 | E7: =MONTH(M15) -> 1 | F7: =YEAR(M15) -> 1900 | G7: =IF(AA9>0,AA9,0) -> 46070 | H7: Days | Q7: 4 | R7: 275 | S7: 120 | T7: 30 | U7: =D7 -> 0 | V7: =IF(E7>0,VLOOKUP($E$7,Table50,2),0) -> 365 | W7: =F7 -> 1900 | X7: =IF(E7>0,VLOOKUP($E$7,Table50,4),0) -> 31 | Y7: =(V7+1)-U7 -> 366 | Z7: =(W7*365)-Y7 -> 693134 | AA7: =Y7+Z7 -> 693500
C8: Date To : | D8: =DAY(M16) -> 20 | E8: =MONTH(M16) -> 3 | F8: =YEAR(M16) -> 2026 | G8: =IF(G7>0,G7/365,0) -> 126.2191781 | H8: Years | I8: =((F8-F7)*12)+(E8-E7) -> 1514 | J8: Months | Q8: 5 | R8: 245 | S8: 151 | T8: 31 | U8: =D8 -> 20 | V8: =IF(E8>0,VLOOKUP($E$8,Table50,3),0) -> 90 | W8: =F8 -> 2026 | X8: =IF(E8>0,VLOOKUP($E$8,Table50,4),0) -> 31 | Y8: =(V8-X8)+U8 -> 79 | Z8: =((W8*365)-365)+Y8 -> 739204 | AA8: =Z8+Y7 -> 739570
Q9: 6 | R9: 214 | S9: 181 | T9: 30 | AA9: =AA8-AA7 -> 46070
C10: Duration : | D10: =TRUNC(G8) -> 126 | E10: Years | F10: =(G8-D10)*365 -> 80 | G10: Days | Q10: 7 | R10: 184 | S10: 212 | T10: 31
Q11: 8 | R11: 153 | S11: 243 | T11: 31
Q12: 9 | R12: 122 | S12: 273 | T12: 30
C13: Approximation : | D13: =D10 -> 126 | E13: Years | F13: =DATEDIF(M15,M16,"YM") -> 2 | G13: Months | Q13: 10 | R13: 92 | S13: 304 | T13: 31
Q14: 11 | R14: 61 | S14: 334 | T14: 30
M15: =IF(AND('Member Details'!K12="",'Practitioners Member Details'!K12<>""),'Practitioners Member Details'!K12,'Member Details'!K12) -> 00:00:00 | Q15: 12 | R15: 31 | S15: 365 | T15: 31
M16: =IF('Member Details'!Q25<>"",'Member Details'!Q25,IF('Practitioners Member Details'!Q22<>"",'Practitioners Member Details'!Q22,NOW())) -> 2026-03-20T08:00:15.720
L18: Year | M18: =DATEDIF(M15,M16,"Y") -> 126
L19: Months | M19: =DATEDIF(M15,M16,"YM") -> 2
L20: Days | M20: =DATEDIF(M15,M16,"MD") -> 20

Sheet PI Finder (hidden)
F2: yyyy | G2: PI Date
C3: Select PI table: | F3: =IF(AND('Member Details'!K25="Yes",'Member Details'!Q25<G3),2025,2026) -> 2026 | G3: 2026-04-06
F5: dd/mm/yyyy
C6: Enter date for PI: | F6: =IF('Member Details'!K23="",'Member Details'!S23,'Member Details'!K23) -> 1900-01-01
C9: PI for this date is: | F9: =IF(F6=0/1/1900,1,VLOOKUP(F6,'PI Data'!$A$3:$AZ$998,F3 - 'PI Data'!$A$1 + 2)) -> 

Sheet Benefit Certificate (hidden)
A1: =IF('Member Details'!K14=1995,"NHS 1995 Section","NHS 2008 Section") -> NHS 2008 Section
A2: Estimated Retirement Benefits from Deferred Status
A3: =IF(AND('Member Details'!Q16="VERA",Age!M18<60,'Member Details'!K25="Yes"),"with Actuarial Reduced Pension","") -> 
A4: =IF('Member Details'!Q25<>"",'Member Details'!Q25,NOW()) -> 2026-03-20T08:00:15.720
A5: Name: | B5: ='Member Details'!K8&" "&'Member Details'!L8&" "&'Member Details'!M8 ->  | C5: Last day of Service: | E5: ='Member Details'!K16 -> 00:00:00
A6: NI Number: | B6: ='Member Details'!K38 -> 0 | C6: Reference: | E6: ='Member Details'!K10 -> 0
A7: Annual Pension | I7: 45110
A8: Pensionable Service | I8: 43402
A10: =IF('Member Details'!K14=1995,'Member Details'!K21&" Years "& 'Member Details'!M21&" Days x 1/80th of £"&'Member Details'!K18,'Member Details'!K21&" Years "& 'Member Details'!M21&" Days x 1/60th of £"&'Member Details'!K18) -> Years Days x 1/60th of £ | D10: =IF('Member Details'!K14=1995,(('Member Details'!M21/365)+'Member Details'!K21)*'Member Details'!K18/80,(('Member Details'!M21/365)+'Member Details'!K21)*'Member Details'!K18/60) -> 0
I11: VERA 1995 | K11: VERA 2008
A12: =IF(AND('Member Details'!Q16="VERA",Age!M18<60,'Member Details'!K25="Yes"),"Less early retirement reduction ("&G12&"%)"," ") ->  | C12: =IF(AND('Member Details'!Q16="VERA",Age!M18<60,'Member Details'!K25="Yes",'Member Details'!K14=1995),"£" & ROUND(D10,2) & " x " & I12,IF(AND('Member Details'!Q16="VERA",Age!M18<65,'Member Details'!K25="Yes",'Member Details'!K14=2008),"£" & ROUND(D10,2) & " x " & K12," ")) ->  | E12: =IF(AND('Member Details'!Q16="VERA",Age!M18<60,'Member Details'!K25="Yes",'Member Details'!K14=1995),D10*I12,IF(AND('Member Details'!Q16="VERA",Age!M18<65,'Member Details'!K25="Yes",'Member Details'!K14=2008),D10*K12,0)) -> 0 | F12: =IF(AND('Member Details'!K14=1995,I12<>""),((1-I12)*100),IF(AND('Member Details'!K14=2008,K12<>""),((1-K12)*100),"")) ->  | G12: =IF(F12<>"",ROUND(F12,2),"") ->  | I12: =IF(AND('Member Details'!Q16="VERA",Age!M18<60,'Member Details'!K25="Yes",'Member Details'!K14=1995),IF('Member Details'!Q25<45110,VLOOKUP(Age!M18,'VERA Pension Factors'!A7:M18,MATCH(Age!M19,'VERA Pension Factors'!A7:M7,0),FALSE),VLOOKUP(Age!M18,'VERA Pension Factors'!P7:AB18,MATCH(Age!M19,'VERA Pension Factors'!P7:AB7,0),FALSE)),"") ->  | K12: =IF(AND('Member Details'!Q16="VERA",Age!M18<65,'Member Details'!K25="Yes",'Member Details'!K14=2008),IF('Member Details'!Q25<45110,VLOOKUP(Age!M18,'VERA Pension Factors'!A44:M53,MATCH(Age!M19,'VERA Pension Factors'!A36:M36,0),FALSE),VLOOKUP(Age!M18,'VERA Pension Factors'!P44:AB53,MATCH(Age!M19,'VERA Pension Factors'!P36:AB36,0),FALSE)),"") -> 
A14: =IF('PI Finder'!F9>1,"Plus Pension Increase" &" ("&F14&")"," ") ->  | D14: =IF('PI Finder'!F9>1,IF(E12<>0,(E12*F14)-E12,(D10*F14)-D10),0) ->  | F14: =IF('PI Finder'!F9>1,ROUND('PI Finder'!F9,4),0) -> 
A16: Estimated Annual Pension | D16: =IF(AND('Member Details'!Q16="VERA",Age!M18<60,'Member Details'!K25="Yes"),SUM(E12+D14),SUM(D10+D14)) -> 
A18: Lump Sum
A19: =IF('Member Details'!K14=1995,"Pensionable Service","") -> 
A21: =IF('Member Details'!K14=1995,'Member Details'!K21&" Years "& 'Member Details'!M21&" Days x 3/80th of £"&'Member Details'!K18,"") ->  | D21: =IF('Member Details'!K14=1995,(('Member Details'!M21/365)+'Member Details'!K21)*'Member Details'!K18*3/80,0) -> 0
A22: =IF('Member Details'!K14=2008,"No Automatic Lump Sum given.","") ->  | I22: VERA LS
A23: =IF(AND('Member Details'!Q16="VERA",Age!M18<60,'Member Details'!K25="Yes",'Member Details'!K14=1995),"Less early retirement reduction ("&G23&"%)"," ") ->  | C23: =IF(AND('Member Details'!Q16="VERA",Age!M18<60,'Member Details'!K25="Yes",'Member Details'!K14=1995),"£" & ROUND(D21,2) & " x " & I23," ") ->  | E23: =IF(AND('Member Details'!Q16="VERA",Age!M18<60,'Member Details'!K25="Yes",'Member Details'!K14=1995),ROUND('Benefit Certificate'!D21,2)*'Benefit Certificate'!I23,0) -> 0 | F23: =IF(AND('Member Details'!Q16="VERA",Age!M18<60,'Member Details'!K14=1995),(1-'Benefit Certificate'!I23)*100,"") ->  | G23: =IF(F23<>"",ROUND(F23,2),"") ->  | I23: =IF(AND('Member Details'!Q16="VERA",Age!M18<60,'Member Details'!K25="Yes",'Member Details'!K14=1995),IF('Member Details'!Q25<45110,VLOOKUP(Age!M18,'VERA LS Factors'!A7:M19,MATCH(Age!M19,'VERA LS Factors'!A7:M7,0),FALSE),VLOOKUP(Age!M18,'VERA LS Factors'!P7:AB19,MATCH(Age!M19,'VERA LS Factors'!P7:AB7,0),FALSE)),"") -> 
A24: =IF('Member Details'!K14=2008,"You may wish to give up part of your pension to receive a tax free Lump Sum.","") -> 
A25: =IF(AND('PI Finder'!F9>1,'Member Details'!K14=1995),"Plus Pension Increase" &" ("&F25&")"," ") ->  | D25: =IF(AND('PI Finder'!F9>1,'Member Details'!K14=1995),IF(E23<>0,(E23*F25)-E23,(D21*F25)-D21),0) ->  | F25: =IF(AND('PI Finder'!F9>1,'Member Details'!K14=1995),ROUND('PI Finder'!F9,4),0) -> 
A26: =IF('Member Details'!K14=2008,"The maximum allowed by HM Revenue & Customs is 25% of your Fund Value.","") -> 
A27: =IF('Member Details'!K14=1995,"Estimated Lump Sum","") ->  | D27: =IF(AND('Member Details'!Q16="VERA",Age!M18<60,'Member Details'!K25="Yes"),SUM(E23+D25),SUM(D21+D25)) -> 
A29: Remaining Tax-Free Lump Sum Availability
A31: Lump Sum Allowance (LSA) | D31: 268275
A32: Lump Sum Allowance (LSA) remaining | D32: =D31-D27 -> 
A34: Lump Sum Death Benefit Allowance (LSDBA) | D34: 1073100
A35: Lump Sum Death Benefit Allowance (LSDBA) remaining | D35: =D34-D27 -> 
A37: HMRC Lifetime Allowance (LTA)
A39: Lifetime Allowance | D39: 1073100
A40: Value of Crystallised Benefits | D40: =(D16*20)+D27 -> 
A41: Percentage of LTA Used (%) | D41: =(D40/D39)*100 -> 
A42: Value of LTA Unused | D42: =IF(D39-D40<0,0,D39-D40) -> 
A43: Percentage of LTA Unused (%) | D43: =IF(100-D41<0,0,100-D41) -> 

Sheet Letter (hidden)
G5: 7 Tweedside Park
G6: Tweedbank
G7: Galashiels
H8: TD1 3TE
A9: ='Member Details'!K8&" "&'Member Details'!L8&" "&'Member Details'!M8 ->  | H9: www.pensions.gov.scot
A10: ='Member Details'!K32 -> 0
A11: ='Member Details'!K33 -> 0 | G11: Tel: 01896 893000
A12: ='Member Details'!K34 -> 0 | G12: Fax: 01896 893214
A13: ='Member Details'!K35 -> 0 | G13: nhsawards@gov.scot
A14: ='Member Details'!K36 -> 0
G15: Our ref: | H15: ='Member Details'!K10 -> 0
G16: Letter Ref: | H16: Pres v1.0
G17: =NOW() -> 2026-03-20T08:00:15.720
A19: ="Dear "&'Member Details'!K8&" "&'Member Details'!M8 -> Dear
A21: National Health Service Superannuation Scheme (Scotland)
A23: In accordance with your request please find enclosed an estimate of your retirement benefits. You should read the notes for further explanatory information.
A26: Name | C26: ='Member Details'!L8&" "&'Member Details'!M8 ->  | E26: National Insurance No | G26: ='Member Details'!K38 -> 0
A27: Date of Birth | C27: ='Member Details'!K12 -> 00:00:00 | E27: Superannuation No | G27: ='Member Details'!K10 -> 0
A28: Normal Retirement Date | C28: =IF('Member Details'!K14=1995,DATE(YEAR('Member Details'!K12)+60,MONTH('Member Details'!K12),DAY('Member Details'!K12)),DATE(YEAR('Member Details'!K12)+65,MONTH('Member Details'!K12),DAY('Member Details'!K12))) -> 1964-12-31 | E28: Normal Pension Age | G28: =IF('Member Details'!K14=1995,60,65) -> 65
A30: ="Service/Salary Details at Last Date of Pensionable Service ("&TEXT('Member Details'!K16,"dd/mm/yyyy")&")" -> Service/Salary Details at Last Date of Pensionable Service (00/01/1900)
A31: Pensionable Service | C31: ='Member Details'!K21&" Years "&'Member Details'!M21&" Days" -> Years Days | E31: Pensionable Salary | G31: ='Member Details'!K18 -> 0
A33: =IF('Member Details'!Q25<>"","Estimated Current Retirement Benefits ("&TEXT('Member Details'!Q25,"dd/mm/yyyy")&")","Estimated Current Retirement Benefits ("&TEXT(Letter!G17,"dd/mm/yyyy")&")") -> Estimated Current Retirement Benefits (20/03/2026)
A34: Pension | C34: ='Benefit Certificate'!D16 ->  | E34: Lump Sum | G34: =IF('Member Details'!K14=1995,ROUND('Benefit Certificate'!D27,2),"No Automatic Lump Sum") -> No Automatic Lump Sum
A36: As you are no longer in pensionable employment, your basic retirement benefits should remain unchanged. These will be index linked in line with inflation until retirement.
A39: This is not a statement of your legal entitlement and is intended for illustrative purposes only. Exact figures for retirement benefits cannot be given until an application for retirement benefits has been made in accordance with the scheme rules. Scottish Public Pensions Agency will accept no responsibility for the accuracy of this information.
A44: If you require any further information please do not hesitate to contact the Agency at the above address.
A47: Yours sincerely
A51: SPPA Customer Services
A62: Pensionable Salary For members of the 1995 section of the NHS Superannuation Scheme (Scotland) the pensionable salary used to calculate scheme benefits on retirement is the best of the last 3 years, this means the pensionable salary taken back 365 days from the date of retirement as supplied by your employer. For members of the 2008 section of the NHS Superannuation Scheme (Scotland) the salary used in calculating your retirement benefits is calculated as the average of the best consecutive 3 years’ revalued salaries in the last 10 years. For the purposes of this illustration your salary information has been based on your preserved pensionable salary. If you were part-time, this will be based on the full time equivalent salary rate. We would emphasise that while every effort has been made to ensure the accuracy of your pensionable salary it is not until you retire that an accurate calculation can be made.
A75: Pensionable Service This is the period of employment that is taken into account when working out pension benefits. The figure quoted is your pensionable service to your last day worked. It will include any service you have already transferred into the scheme from another pension scheme. Please note that part-time service is converted to the equivalent full time service. For example, if you worked 18.75 hours per week instead of 37.5 for a full time employment then you would accrue 183 days service instead of 365 for each year. No projected service has been added as you have left pensionable employment.
A83: Estimated Current Benefits 1995 Member If you are a 1995 section member, your annual pension has been calculated using the following formula: Pension: Pensionable Service x Pensionable Salary x 1/80th Lump Sum: Pensionable Service x Pensionable Salary x 3/80th If you worked after 30 March 2000, you may take you benefits prior to Normal Pension Age (NPA) of 60. Any benefits payable prior to NPA will normally be subject to an actuarial reduction to allow for the benefits being paid earlier. 2008 Member If you are a 2008 section member, your annual pension has been calculated using the following formula: Pension: Pensionable Service x Pensionable Salary x 1/60th Lump Sum: No Automatic Lump Sum Any benefits payable prior to NPA of 65 will normally be subject to an actuarial reduction to allow for the benefits being paid earlier.
A103: Increasing your Tax Free Lump Sum There is the provision to give up an amount of pension in exchange for an additional lump sum up to the maximum allowed by HM Revenue & Customs of 25% of the fund value. There is a Commutation Calculator on our website that can be used to project estimated values. The factor for converting your pension into lump sum is 12:1 which means that for every £1 of pension you give up, you will get £12 added to your lump sum.

Sheet Practitioners Member Details (hidden)
F2: NHS Superannuation Scheme (Scotland) Preserved Benefits Estimate Calculator
E6: Practitioner Member Details | J6: PLEASE COMPLETE ALL NECESSARY DATA
I8: Members Name | P8: Eg: Mr | J | Smith
H10: Superannuation Number
I12: Date of Birth | T12: =DATEDIF(K12,NOW(),"Y") -> 126 | U12: Yes
U13: No
I14: Scheme | S14: 1995
S15: 2008
H16: Last Day Worked in NHS | P16: =K16+1 -> 1900-01-01 | Q16: =IF(R16>=S16,"VERA","AGE") -> AGE | R16: =K16 -> 0 | S16: 36616
H18: Deferred Basic Pension
H20: =IF(K14=2008,"","Deferred Basic Lump Sum ") -> Deferred Basic Lump Sum
J22: =IF(T12>=55,"Are you looking for a Retirement Estimate? ","") -> Are you looking for a Retirement Estimate? | O22: =IF(K22="Yes","Retirement Date ","") ->  | S22: Yes
S23: No
I27: Additional Information if Letter and Certificate Required
I29: Address Line 1
I30: Address Line 2
I31: Address Line 3
I32: Address Line 4
I33: Post Code
I35: NI Number

Sheet Practitioners Letter (hidden)
G5: 7 Tweedside Park
G6: Tweedbank
G7: Galashiels
H8: TD1 3TE
A9: ='Practitioners Member Details'!K8&" "&'Practitioners Member Details'!L8&" "&'Practitioners Member Details'!M8 ->  | H9: www.pensions.gov.scot
A10: ='Practitioners Member Details'!K29 -> 0
A11: ='Practitioners Member Details'!K30 -> 0 | G11: Tel: 01896 893000
A12: ='Practitioners Member Details'!K31 -> 0 | G12: Fax: 01896 893214
A13: ='Practitioners Member Details'!K32 -> 0 | G13: nhspractitioner@gov.scot
A14: ='Practitioners Member Details'!K33 -> 0
G15: Our ref: | H15: ='Practitioners Member Details'!K10 -> 0
G16: Letter Ref: | H16: Pres v1.0
G17: =NOW() -> 2026-03-20T08:00:15.720
A19: ="Dear "&'Practitioners Member Details'!K8&" "&'Practitioners Member Details'!M8 -> Dear
A21: National Health Service Superannuation Scheme (Scotland)
A23: In accordance with your request please find enclosed an estimate of your retirement benefits. You should read the notes for further explanatory information.
A26: Name | C26: ='Practitioners Member Details'!L8&" "&'Practitioners Member Details'!M8 ->  | E26: National Insurance No | G26: ='Practitioners Member Details'!K35 -> 0
A27: Date of Birth | C27: ='Practitioners Member Details'!K12 -> 00:00:00 | E27: Superannuation No | G27: ='Practitioners Member Details'!K10 -> 0
A28: Normal Retirement Date | C28: =IF('Practitioners Member Details'!K14=1995,DATE(YEAR('Practitioners Member Details'!K12)+60,MONTH('Practitioners Member Details'!K12),DAY('Practitioners Member Details'!K12)),DATE(YEAR('Practitioners Member Details'!K12)+65,MONTH('Practitioners Member Details'!K12),DAY('Practitioners Member Details'!K12))) -> 1964-12-31 | E28: Normal Pension Age | G28: =IF('Practitioners Member Details'!K14=1995,60,65) -> 65
A30: =IF('Practitioners Member Details'!Q22<>"","Estimated Current Retirement Benefits ("&TEXT('Practitioners Member Details'!Q22,"dd/mm/yyyy")&")","Estimated Current Retirement Benefits ("&TEXT(G17,"dd/mm/yyyy")&")") -> Estimated Current Retirement Benefits (20/03/2026)
A31: Pension | C31: ='Practitioners Ben Certificate'!D16 ->  | E31: Lump Sum | G31: =IF('Practitioners Member Details'!K14=1995,ROUND('Practitioners Ben Certificate'!D27,2),"No Automatic Lump Sum") -> No Automatic Lump Sum
A33: As you are no longer in pensionable employment, your basic retirement benefits should remain unchanged. These will be index linked in line with inflation until retirement.
A36: This is not a statement of your legal entitlement and is intended for illustrative purposes only. Exact figures for retirement benefits cannot be given until an application for retirement benefits has been made in accordance with the scheme rules. Scottish Public Pensions Agency will accept no responsibility for the accuracy of this information.
A41: If you require any further information please do not hesitate to contact the Agency at the above address.
A44: Yours sincerely
A50: NHS Practitioners Team
A66: Notes Pension benefits for service as a practitioner are based on pensionable remuneration earned in each financial year which is then uprated by factors to a current value at the date of ceasing to pay contributions and added together to give the Total Uprated Superannable Remuneration (TUSR). The pension in the 1995 Section of the Scheme is calculated at 1.4% of the TUSR and the tax free lump sum as 4.2% of the TUSR. In the 2008 Section the pension is calculated at 1.87% of the TUSR. There is no automatic tax free lump sum however there is provision to give up an amount of pension in exchange for a tax free lump sum. Further information is provided below. Pension benefits for non-practitioner earnings are based on an accrual rate of 1/80th for the 1995 section and 1/60th for the 2008 section. Pension flexibilities for practitioners have been applied but these cannot be fully tested until retirement when the highest possible benefits will be paid. Any service purchased as the result of an added years contract has been included in the estimate as a proportional credit. Practitioner earnings and the Consumer Price Index rates are not available in advance therefore SPPA do not provide projections of benefits.
A87: Increasing your Tax Free Lump Sum There is the provision to give up an amount of pension in exchange for an additional lump sum up to the maximum allowed by HM Revenue & Customs of 25% of the fund value. There is a Commutation Calculator on our website that can be used to project estimated values. The factor for converting your pension into lump sum is 12:1 which means that for every £1 of pension you give up, you will get £12 added to your lump sum.

Sheet Practitioners PI Finder (hidden)
F2: yyyy | G2: PI Date
C3: Select PI table: | F3: =IF(AND('Practitioners Member Details'!K25="Yes",'Practitioners Member Details'!Q25<G3),2022,2023) -> 2023 | G3: 2023-04-06
F5: dd/mm/yyyy
C6: Enter date for PI: | F6: ='Practitioners Member Details'!P16 -> 1900-01-01
C9: PI for this date is: | F9: =IF(F6=0/1/1900,1,VLOOKUP(F6,'PI Data'!$A$3:$AZ$998,F3 - 'PI Data'!$A$1 + 2)) -> 

Sheet Practitioners Ben Certificate (hidden)
A1: =IF('Practitioners Member Details'!K14=1995,"NHS 1995 Section","NHS 2008 Section") -> NHS 2008 Section
A2: Estimated Retirement Benefits from Deferred Status
A3: =IF(AND('Practitioners Member Details'!Q16="VERA",Age!M18<60,'Practitioners Member Details'!K23="Yes"),"with Actuarial Reduced Pension","") -> 
A4: =IF('Practitioners Member Details'!Q23<>"",'Practitioners Member Details'!Q23,NOW()) -> 2026-03-20T08:00:15.720
A5: Name: | B5: ='Practitioners Member Details'!K8&" "&'Practitioners Member Details'!L8&" "&'Practitioners Member Details'!M8 ->  | C5: Last day of Service: | E5: ='Practitioners Member Details'!K16 -> 00:00:00
A6: NI Number: | B6: ='Practitioners Member Details'!K35 -> 0 | C6: Reference: | E6: ='Practitioners Member Details'!K10 -> 0
A7: Annual Pension
A10: Deferred Basic Total Pension | D10: ='Practitioners Member Details'!K18 -> 0
I11: VERA 1995 | K11: VERA 2008
A12: =IF(AND('Practitioners Member Details'!Q16="VERA",Age!M18<60,'Practitioners Member Details'!K22="Yes"),"Less early retirement reduction ("&G12&"%)"," ") ->  | C12: =IF(AND('Practitioners Member Details'!Q16="VERA",Age!M18<60,'Practitioners Member Details'!K23="Yes",'Practitioners Member Details'!K14=1995),"£" & ROUND(D10,2) & " x " & I12,IF(AND('Practitioners Member Details'!Q16="VERA",Age!M18<65,'Practitioners Member Details'!K23="Yes",'Practitioners Member Details'!K14=2008),"£" & ROUND(D10,2) & " x " & K12," ")) ->  | E12: =IF(AND('Practitioners Member Details'!Q16="VERA",Age!M18<60,'Practitioners Member Details'!K22="Yes",'Practitioners Member Details'!K14=1995),D10*I12,IF(AND('Practitioners Member Details'!Q16="VERA",Age!M18<65,'Practitioners Member Details'!K22="Yes",'Practitioners Member Details'!K14=2008),D10*K12,0)) -> 0 | F12: =IF(AND('Practitioners Member Details'!K14=1995,I12<>""),((1-I12)*100),IF(AND('Practitioners Member Details'!K14=2008,K12<>""),((1-K12)*100),"")) ->  | G12: =IF(F12<>"",ROUND(F12,2),"") ->  | I12: =IF(AND('Practitioners Member Details'!Q16="VERA",Age!M18<60,'Practitioners Member Details'!K22="Yes",'Practitioners Member Details'!K14=1995),IF('Practitioners Member Details'!Q22<45110,VLOOKUP(Age!M18,'VERA Pension Factors'!A7:M18,MATCH(Age!M19,'VERA Pension Factors'!A7:M7,0),FALSE),VLOOKUP(Age!M18,'VERA Pension Factors'!P7:AB18,MATCH(Age!M19,'VERA Pension Factors'!P7:AB7,0),FALSE)),"") ->  | K12: =IF(AND('Practitioners Member Details'!Q16="VERA",Age!M18<65,'Practitioners Member Details'!K22="Yes",'Practitioners Member Details'!K14=2008),IF('Practitioners Member Details'!Q22<45110,VLOOKUP(Age!M18,'VERA Pension Factors'!A44:M53,MATCH(Age!M19,'VERA Pension Factors'!A36:M36,0),FALSE),VLOOKUP(Age!M18,'VERA Pension Factors'!P44:AB53,MATCH(Age!M19,'VERA Pension Factors'!P36:AB36,0),FALSE)),"") -> 
A14: =IF('Practitioners PI Finder'!F9>1,"Plus Pension Increase" &" ("&F14&")"," ") ->  | D14: =IF('Practitioners PI Finder'!F9>1,IF(E12<>0,(E12*F14)-E12,(D10*F14)-D10),0) ->  | F14: =IF('Practitioners PI Finder'!F9>1,ROUND('Practitioners PI Finder'!F9,4),0) -> 
A16: Estimated Annual Pension | D16: =IF(AND('Practitioners Member Details'!Q16="VERA",Age!M18<60,'Practitioners Member Details'!K22="Yes"),SUM(E12+D14),SUM(D10+D14)) -> 
A18: Lump Sum
A21: Deferred Basic Lump Sum | D21: ='Practitioners Member Details'!K20 -> 0
A22: =IF('Practitioners Member Details'!K14=2008,"No Automatic Lump Sum given.","") ->  | I22: VERA LS
A23: =IF(AND('Practitioners Member Details'!Q16="VERA",Age!M18<60,'Practitioners Member Details'!K22="Yes",'Practitioners Member Details'!K14=1995),"Less early retirement reduction ("&G23&"%)"," ") ->  | C23: =IF(AND('Practitioners Member Details'!Q16="VERA",Age!M18<60,'Practitioners Member Details'!K23="Yes",'Practitioners Member Details'!K14=1995),"£" & ROUND(D21,2) & " x " & I23," ") ->  | E23: =IF(AND('Practitioners Member Details'!Q16="VERA",Age!M18<60,'Practitioners Member Details'!K22="Yes",'Practitioners Member Details'!K14=1995),ROUND('Practitioners Ben Certificate'!D21,2)*'Practitioners Ben Certificate'!I23,0) -> 0 | F23: =IF(AND('Practitioners Member Details'!Q16="VERA",Age!M18<60,'Practitioners Member Details'!K14=1995),(1-'Practitioners Ben Certificate'!I23)*100,"") ->  | G23: =IF(F23<>"",ROUND(F23,2),"") ->  | I23: =IF(AND('Practitioners Member Details'!Q16="VERA",Age!M18<60,'Practitioners Member Details'!K22="Yes",'Practitioners Member Details'!K14=1995),IF('Practitioners Member Details'!Q22<45110,VLOOKUP(Age!M18,'VERA LS Factors'!A7:M19,MATCH(Age!M19,'VERA LS Factors'!A7:M7,0),FALSE),VLOOKUP(Age!M18,'VERA LS Factors'!P7:AB19,MATCH(Age!M19,'VERA LS Factors'!P7:AB7,0),FALSE)),"") -> 
A24: =IF('Practitioners Member Details'!K14=2008,"You may wish to give up part of your pension to receive a tax free Lump Sum.","") -> 
A25: =IF(AND('Practitioners PI Finder'!F9>1,'Practitioners Member Details'!K14=1995),"Plus Pension Increase" &" ("&F25&")"," ") ->  | D25: =IF(AND('Practitioners PI Finder'!F9>1,'Practitioners Member Details'!K14=1995),IF(E23<>0,(E23*F25)-E23,(D21*F25)-D21),0) ->  | F25: =IF(AND('Practitioners PI Finder'!F9>1,'Practitioners Member Details'!K14=1995),ROUND('Practitioners PI Finder'!F9,4),0) -> 
A26: =IF('Practitioners Member Details'!K14=2008,"The maximum allowed by HM Revenue & Customs is 25% of your Fund Value.","") -> 
A27: =IF('Practitioners Member Details'!K14=1995,"Estimated Lump Sum","") ->  | D27: =IF(AND('Practitioners Member Details'!Q16="VERA",Age!M18<60,'Practitioners Member Details'!K22="Yes"),SUM(E23+D25),SUM(D21+D25)) -> 
A29: HMRC Lifetime Allowance (LTA)
A31: Lifetime Allowance | D31: 1073100
A32: Value of Crystallised Benefits | D32: =(D16*20)+D27 ->  | G32: Tax Charge Message
A33: Percentage of LTA Used (%) | D33: =(D32/D31)*100 -> 
A34: Value of LTA Unused | D34: =IF(D31-D32<0,0,D31-D32) -> 
A35: Percentage of LTA Unused (%) | D35: =IF(100-D33<0,0,100-D33) -> 
